Workbook

Sheet Dashboard
C5: Excel Salary survey Data
C25: Select to know Job type wise Excel Use & Salary thereof | H25: 2
F27: Salary in US $ | H27: Employee Numbers | J27: Average/Employee
D28: Analyst | F28: =GETPIVOTDATA("Salary in USD",Pivotone!$A$3,"Job Type",$D28,"How many hours of a day you work on Excel",Calculation!$V$28) -> 9234925.421 | H28: =GETPIVOTDATA("Count of Salary in USD",'Pivottwo '!A3,"Job Type",$D28,"How many hours of a day you work on Excel",Calculation!$V$28) -> 215 | J28: =IF(H28=0,0,F28/H28) -> 42953.14149
D29: Controller | F29: =GETPIVOTDATA("Salary in USD",Pivotone!$A$3,"Job Type",$D29,"How many hours of a day you work on Excel",Calculation!$V$28) -> 845272.5737 | H29: =GETPIVOTDATA("Count of Salary in USD",'Pivottwo '!A4,"Job Type",$D29,"How many hours of a day you work on Excel",Calculation!$V$28) -> 14 | J29: =IF(H29=0,0,F29/H29) -> 60376.61241
D30: Engineer | F30: =GETPIVOTDATA("Salary in USD",Pivotone!$A$3,"Job Type",$D30,"How many hours of a day you work on Excel",Calculation!$V$28) -> 326875.3333 | H30: =GETPIVOTDATA("Count of Salary in USD",'Pivottwo '!A5,"Job Type",$D30,"How many hours of a day you work on Excel",Calculation!$V$28) -> 8 | J30: 40859.41667
D31: Manager | F31: =GETPIVOTDATA("Salary in USD",Pivotone!$A$3,"Job Type",$D31,"How many hours of a day you work on Excel",Calculation!$V$28) -> 3897827.27 | H31: =GETPIVOTDATA("Count of Salary in USD",'Pivottwo '!A6,"Job Type",$D31,"How many hours of a day you work on Excel",Calculation!$V$28) -> 110 | J31: 35434.79337
D32: CXO or Top Mgmt. | F32: =GETPIVOTDATA("Salary in USD",Pivotone!$A$3,"Job Type",$D32,"How many hours of a day you work on Excel",Calculation!$V$28) -> 889546.9161 | H32: =GETPIVOTDATA("Count of Salary in USD",'Pivottwo '!A7,"Job Type",$D32,"How many hours of a day you work on Excel",Calculation!$V$28) -> 11 | J32: 80867.90146
D33: Accountant | F33: =GETPIVOTDATA("Salary in USD",Pivotone!$A$3,"Job Type",$D33,"How many hours of a day you work on Excel",Calculation!$V$28) -> 1915750.293 | H33: =GETPIVOTDATA("Count of Salary in USD",'Pivottwo '!A8,"Job Type",$D33,"How many hours of a day you work on Excel",Calculation!$V$28) -> 39 | J33: 49121.80239
D34: Specialist | F34: =GETPIVOTDATA("Salary in USD",Pivotone!$A$3,"Job Type",$D34,"How many hours of a day you work on Excel",Calculation!$V$28) -> 1087096.539 | H34: =GETPIVOTDATA("Count of Salary in USD",'Pivottwo '!A9,"Job Type",$D34,"How many hours of a day you work on Excel",Calculation!$V$28) -> 12 | J34: 90591.37827
D35: Reporting | F35: =GETPIVOTDATA("Salary in USD",Pivotone!$A$3,"Job Type",$D35,"How many hours of a day you work on Excel",Calculation!$V$28) -> 753256.4946 | H35: =GETPIVOTDATA("Count of Salary in USD",'Pivottwo '!A10,"Job Type",$D35,"How many hours of a day you work on Excel",Calculation!$V$28) -> 41 | J35: 18372.10962
D36: Consultant | F36: =GETPIVOTDATA("Salary in USD",Pivotone!$A$3,"Job Type",$D36,"How many hours of a day you work on Excel",Calculation!$V$28) -> 1768322.652 | H36: =GETPIVOTDATA("Count of Salary in USD",'Pivottwo '!A11,"Job Type",$D36,"How many hours of a day you work on Excel",Calculation!$V$28) -> 25 | J36: 70732.90609
D37: Misc. | F37: =GETPIVOTDATA("Salary in USD",Pivotone!$A$3,"Job Type",$D37,"How many hours of a day you work on Excel",Calculation!$V$28) -> 21000 | H37: =GETPIVOTDATA("Count of Salary in USD",'Pivottwo '!A12,"Job Type",$D37,"How many hours of a day you work on Excel",Calculation!$V$28) -> 1 | J37: 21000
D38: TOTAL | F38: =SUM(F28:G37) -> 20739873.49 | H38: =SUM(H28:I37) -> 476 | J38: =F38/H38 -> 43571.1628
M41: Salary by Experience - in Lac US $
M43: Criteria | O43: No. of Employees | Q43: Lac USD | R43: Avg
M44: Blank ** | O44: =Calculation!D69 -> 548 | Q44: =Calculation!F69/100000 -> 190.2443461 | R44: =Q44*100000/O44 -> 34716.12155
M45: =Calculation!E70 -> Less than 5 | O45: =Calculation!D70 -> 420 | Q45: =Calculation!F70/100000 -> 218.6503692 | R45: =Q45*100000/O45 -> 52059.61172
M46: =Calculation!E71 -> >=5 but < 10 | O46: =Calculation!D71 -> 417 | Q46: =Calculation!F71/100000 -> 229.9008311 | R46: 55132.09379
M47: =Calculation!E72 -> >=10 but < 20 | O47: =Calculation!D72 -> 355 | Q47: =Calculation!F72/100000 -> 222.3816531 | R47: 62642.71917
M48: =Calculation!E73 -> > than 20 | O48: =Calculation!D73 -> 143 | Q48: =Calculation!F73/100000 -> 76.83168565 | R48: 53728.4515
O49: =SUM(O44:P48) -> 1883 | Q49: =SUM(Q44:Q48) -> 938.0088852
C52: Observations :
C54: Analysts & Manager category consist of 69% in Numbers but get only 65% share of total Salary payout.
C55: ** Experience data of 543 Employees is yet to be updated.
C56: Out of total 1883 Excel Users 33% are based in US & get 48% of Salary payout.
C57: Average Salary in Australia is the highest amongst all countries.
C58: Specialist who works for all 8 hours on EXCEL earns higher than the Top management Salary.

Sheet Calculation
C21: Job Type | D21: 4 to 6 hours a day | F21: All the 8 hours baby, all the 8! | H21: 2 to 3 hours per day | J21: 1 or 2 hours a day | L21: Excel ?!? What Excel? | N21: Total | O21: No.of Employees
D22: Salary in USD | E22: No. of Employees | F22: Salary in USD | G22: No. of Employees | H22: Salary in USD | I22: No. of Employees | J22: Salary in USD | K22: No. of Employees | L22: Salary in USD | M22: No. of Employees | N22: Salary in USD | O22: Employee Nos. | P22: Avg. Salary | V22: =A -> 4 to 6 hours a day | W22: 4 to 6 hours a day
C23: Analyst | D23: =SUMIFS(Data!$G$5:$G$1888,Data!$I$5:$I$1888,Calculation!$C23,Data!$L$5:$L$1888,Calculation!D$21) -> 17013013.7 | E23: =COUNTIFS(Data!$I$5:$I$1888,Calculation!$C23,Data!$L$5:$L$1888,Calculation!D$21) -> 329 | F23: =SUMIFS(Data!$G$5:$G$1888,Data!$I$5:$I$1888,Calculation!$C23,Data!$L$5:$L$1888,Calculation!F$21) -> 11122617.65 | G23: =COUNTIFS(Data!$I$5:$I$1888,Calculation!$C23,Data!$L$5:$L$1888,Calculation!F$21) -> 215 | H23: =SUMIFS(Data!$G$5:$G$1888,Data!$I$5:$I$1888,Calculation!$C23,Data!$L$5:$L$1888,Calculation!H$21) -> 6424250.006 | I23: =COUNTIFS(Data!$I$5:$I$1888,Calculation!$C23,Data!$L$5:$L$1888,Calculation!H$21) -> 137 | J23: =SUMIFS(Data!$G$5:$G$1888,Data!$I$5:$I$1888,Calculation!$C23,Data!$L$5:$L$1888,Calculation!J$21) -> 2715890.139 | K23: =COUNTIFS(Data!$I$5:$I$1888,Calculation!$C23,Data!$L$5:$L$1888,Calculation!J$21) -> 57 | L23: =SUMIFS(Data!$G$5:$G$1888,Data!$I$5:$I$1888,Calculation!$C23,Data!$L$5:$L$1888,Calculation!L$21) -> 259790.5793 | M23: =COUNTIFS(Data!$I$5:$I$1888,Calculation!$C23,Data!$L$5:$L$1888,Calculation!L$21) -> 5 | N23: =SUMIF(Data!$I$6:$I$1888,Calculation!C23,Data!$G$6:$G$1888) -> 37535562.08 | O23: =COUNTIF(Data!$I$5:$I$1888,"="&C23) -> 743 | P23: =IF(O23=0,0,N23/O23) -> 50518.92609 | V23: =B -> All the 8 hours baby, all the 8! | W23: All the 8 hours baby, all the 8!
C24: Controller | D24: =SUMIFS(Data!$G$5:$G$1888,Data!$I$5:$I$1888,Calculation!$C24,Data!$L$5:$L$1888,Calculation!D$21) -> 1847143.413 | E24: =COUNTIFS(Data!$I$5:$I$1888,Calculation!$C24,Data!$L$5:$L$1888,Calculation!D$21) -> 36 | F24: =SUMIFS(Data!$G$5:$G$1888,Data!$I$5:$I$1888,Calculation!$C24,Data!$L$5:$L$1888,Calculation!F$21) -> 996176.4897 | G24: =COUNTIFS(Data!$I$5:$I$1888,Calculation!$C24,Data!$L$5:$L$1888,Calculation!F$21) -> 14 | H24: =SUMIFS(Data!$G$5:$G$1888,Data!$I$5:$I$1888,Calculation!$C24,Data!$L$5:$L$1888,Calculation!H$21) -> 619918.0701 | I24: =COUNTIFS(Data!$I$5:$I$1888,Calculation!$C24,Data!$L$5:$L$1888,Calculation!H$21) -> 15 | J24: =SUMIFS(Data!$G$5:$G$1888,Data!$I$5:$I$1888,Calculation!$C24,Data!$L$5:$L$1888,Calculation!J$21) -> 41842.37501 | K24: =COUNTIFS(Data!$I$5:$I$1888,Calculation!$C24,Data!$L$5:$L$1888,Calculation!J$21) -> 2 | L24: =SUMIFS(Data!$G$5:$G$1888,Data!$I$5:$I$1888,Calculation!$C24,Data!$L$5:$L$1888,Calculation!L$21) -> 0 | M24: =COUNTIFS(Data!$I$5:$I$1888,Calculation!$C24,Data!$L$5:$L$1888,Calculation!L$21) -> 0 | N24: =SUMIF(Data!$I$6:$I$1888,Calculation!C24,Data!$G$6:$G$1888) -> 3505080.348 | O24: =COUNTIF(Data!$I$5:$I$1888,"="&C24) -> 67 | P24: =IF(O24=0,0,N24/O24) -> 52314.63205 | V24: =X -> 2 to 3 hours per day | W24: 2 to 3 hours per day
C25: Engineer | D25: =SUMIFS(Data!$G$5:$G$1888,Data!$I$5:$I$1888,Calculation!$C25,Data!$L$5:$L$1888,Calculation!D$21) -> 1449470.153 | E25: =COUNTIFS(Data!$I$5:$I$1888,Calculation!$C25,Data!$L$5:$L$1888,Calculation!D$21) -> 26 | F25: =SUMIFS(Data!$G$5:$G$1888,Data!$I$5:$I$1888,Calculation!$C25,Data!$L$5:$L$1888,Calculation!F$21) -> 304435.1063 | G25: =COUNTIFS(Data!$I$5:$I$1888,Calculation!$C25,Data!$L$5:$L$1888,Calculation!F$21) -> 8 | H25: =SUMIFS(Data!$G$5:$G$1888,Data!$I$5:$I$1888,Calculation!$C25,Data!$L$5:$L$1888,Calculation!H$21) -> 1313482.847 | I25: =COUNTIFS(Data!$I$5:$I$1888,Calculation!$C25,Data!$L$5:$L$1888,Calculation!H$21) -> 26 | J25: =SUMIFS(Data!$G$5:$G$1888,Data!$I$5:$I$1888,Calculation!$C25,Data!$L$5:$L$1888,Calculation!J$21) -> 418184.9836 | K25: =COUNTIFS(Data!$I$5:$I$1888,Calculation!$C25,Data!$L$5:$L$1888,Calculation!J$21) -> 14 | L25: =SUMIFS(Data!$G$5:$G$1888,Data!$I$5:$I$1888,Calculation!$C25,Data!$L$5:$L$1888,Calculation!L$21) -> 0 | M25: =COUNTIFS(Data!$I$5:$I$1888,Calculation!$C25,Data!$L$5:$L$1888,Calculation!L$21) -> 0 | N25: =SUMIF(Data!$I$6:$I$1888,Calculation!C25,Data!$G$6:$G$1888) -> 3485573.09 | O25: =COUNTIF(Data!$I$5:$I$1888,"="&C25) -> 74 | P25: 47102.33905 | V25: =Y -> 1 or 2 hours a day | W25: 1 or 2 hours a day
C26: Manager | D26: =SUMIFS(Data!$G$5:$G$1888,Data!$I$5:$I$1888,Calculation!$C26,Data!$L$5:$L$1888,Calculation!D$21) -> 9787205.312 | E26: =COUNTIFS(Data!$I$5:$I$1888,Calculation!$C26,Data!$L$5:$L$1888,Calculation!D$21) -> 215 | F26: =SUMIFS(Data!$G$5:$G$1888,Data!$I$5:$I$1888,Calculation!$C26,Data!$L$5:$L$1888,Calculation!F$21) -> 5290135.394 | G26: =COUNTIFS(Data!$I$5:$I$1888,Calculation!$C26,Data!$L$5:$L$1888,Calculation!F$21) -> 110 | H26: =SUMIFS(Data!$G$5:$G$1888,Data!$I$5:$I$1888,Calculation!$C26,Data!$L$5:$L$1888,Calculation!H$21) -> 8457856.438 | I26: =COUNTIFS(Data!$I$5:$I$1888,Calculation!$C26,Data!$L$5:$L$1888,Calculation!H$21) -> 166 | J26: =SUMIFS(Data!$G$5:$G$1888,Data!$I$5:$I$1888,Calculation!$C26,Data!$L$5:$L$1888,Calculation!J$21) -> 3333565.344 | K26: =COUNTIFS(Data!$I$5:$I$1888,Calculation!$C26,Data!$L$5:$L$1888,Calculation!J$21) -> 65 | L26: =SUMIFS(Data!$G$5:$G$1888,Data!$I$5:$I$1888,Calculation!$C26,Data!$L$5:$L$1888,Calculation!L$21) -> 55689.21254 | M26: =COUNTIFS(Data!$I$5:$I$1888,Calculation!$C26,Data!$L$5:$L$1888,Calculation!L$21) -> 2 | N26: =SUMIF(Data!$I$6:$I$1888,Calculation!C26,Data!$G$6:$G$1888) -> 26924451.7 | O26: =COUNTIF(Data!$I$5:$I$1888,"="&C26) -> 558 | P26: 48251.70556 | V26: =Z -> Excel ?!? What Excel? | W26: Excel ?!? What Excel?
C27: CXO or Top Mgmt. | D27: =SUMIFS(Data!$G$5:$G$1888,Data!$I$5:$I$1888,Calculation!$C27,Data!$L$5:$L$1888,Calculation!D$21) -> 1857040.063 | E27: =COUNTIFS(Data!$I$5:$I$1888,Calculation!$C27,Data!$L$5:$L$1888,Calculation!D$21) -> 32 | F27: =SUMIFS(Data!$G$5:$G$1888,Data!$I$5:$I$1888,Calculation!$C27,Data!$L$5:$L$1888,Calculation!F$21) -> 505164.6931 | G27: =COUNTIFS(Data!$I$5:$I$1888,Calculation!$C27,Data!$L$5:$L$1888,Calculation!F$21) -> 11 | H27: =SUMIFS(Data!$G$5:$G$1888,Data!$I$5:$I$1888,Calculation!$C27,Data!$L$5:$L$1888,Calculation!H$21) -> 920584.8038 | I27: =COUNTIFS(Data!$I$5:$I$1888,Calculation!$C27,Data!$L$5:$L$1888,Calculation!H$21) -> 22 | J27: =SUMIFS(Data!$G$5:$G$1888,Data!$I$5:$I$1888,Calculation!$C27,Data!$L$5:$L$1888,Calculation!J$21) -> 548215.8363 | K27: =COUNTIFS(Data!$I$5:$I$1888,Calculation!$C27,Data!$L$5:$L$1888,Calculation!J$21) -> 10 | L27: =SUMIFS(Data!$G$5:$G$1888,Data!$I$5:$I$1888,Calculation!$C27,Data!$L$5:$L$1888,Calculation!L$21) -> 0 | M27: =COUNTIFS(Data!$I$5:$I$1888,Calculation!$C27,Data!$L$5:$L$1888,Calculation!L$21) -> 0 | N27: =SUMIF(Data!$I$6:$I$1888,Calculation!C27,Data!$G$6:$G$1888) -> 3831005.397 | O27: =COUNTIF(Data!$I$5:$I$1888,"="&C27) -> 75 | P27: 51080.07196
C28: Accountant | D28: =SUMIFS(Data!$G$5:$G$1888,Data!$I$5:$I$1888,Calculation!$C28,Data!$L$5:$L$1888,Calculation!D$21) -> 3215319.588 | E28: =COUNTIFS(Data!$I$5:$I$1888,Calculation!$C28,Data!$L$5:$L$1888,Calculation!D$21) -> 58 | F28: =SUMIFS(Data!$G$5:$G$1888,Data!$I$5:$I$1888,Calculation!$C28,Data!$L$5:$L$1888,Calculation!F$21) -> 1587943.258 | G28: =COUNTIFS(Data!$I$5:$I$1888,Calculation!$C28,Data!$L$5:$L$1888,Calculation!F$21) -> 39 | H28: =SUMIFS(Data!$G$5:$G$1888,Data!$I$5:$I$1888,Calculation!$C28,Data!$L$5:$L$1888,Calculation!H$21) -> 1780973.061 | I28: =COUNTIFS(Data!$I$5:$I$1888,Calculation!$C28,Data!$L$5:$L$1888,Calculation!H$21) -> 34 | J28: =SUMIFS(Data!$G$5:$G$1888,Data!$I$5:$I$1888,Calculation!$C28,Data!$L$5:$L$1888,Calculation!J$21) -> 420000 | K28: =COUNTIFS(Data!$I$5:$I$1888,Calculation!$C28,Data!$L$5:$L$1888,Calculation!J$21) -> 4 | L28: =SUMIFS(Data!$G$5:$G$1888,Data!$I$5:$I$1888,Calculation!$C28,Data!$L$5:$L$1888,Calculation!L$21) -> 0 | M28: =COUNTIFS(Data!$I$5:$I$1888,Calculation!$C28,Data!$L$5:$L$1888,Calculation!L$21) -> 0 | N28: =SUMIF(Data!$I$6:$I$1888,Calculation!C28,Data!$G$6:$G$1888) -> 7004235.907 | O28: =COUNTIF(Data!$I$5:$I$1888,"="&C28) -> 135 | P28: 51883.22894 | V28: =INDEX(W22:W26,Dashboard!$H$25,1) -> All the 8 hours baby, all the 8!
C29: Specialist | D29: =SUMIFS(Data!$G$5:$G$1888,Data!$I$5:$I$1888,Calculation!$C29,Data!$L$5:$L$1888,Calculation!D$21) -> 1041581.248 | E29: =COUNTIFS(Data!$I$5:$I$1888,Calculation!$C29,Data!$L$5:$L$1888,Calculation!D$21) -> 23 | F29: =SUMIFS(Data!$G$5:$G$1888,Data!$I$5:$I$1888,Calculation!$C29,Data!$L$5:$L$1888,Calculation!F$21) -> 743401.5509 | G29: =COUNTIFS(Data!$I$5:$I$1888,Calculation!$C29,Data!$L$5:$L$1888,Calculation!F$21) -> 12 | H29: =SUMIFS(Data!$G$5:$G$1888,Data!$I$5:$I$1888,Calculation!$C29,Data!$L$5:$L$1888,Calculation!H$21) -> 397712.4859 | I29: =COUNTIFS(Data!$I$5:$I$1888,Calculation!$C29,Data!$L$5:$L$1888,Calculation!H$21) -> 12 | J29: =SUMIFS(Data!$G$5:$G$1888,Data!$I$5:$I$1888,Calculation!$C29,Data!$L$5:$L$1888,Calculation!J$21) -> 130800 | K29: =COUNTIFS(Data!$I$5:$I$1888,Calculation!$C29,Data!$L$5:$L$1888,Calculation!J$21) -> 4 | L29: =SUMIFS(Data!$G$5:$G$1888,Data!$I$5:$I$1888,Calculation!$C29,Data!$L$5:$L$1888,Calculation!L$21) -> 0 | M29: =COUNTIFS(Data!$I$5:$I$1888,Calculation!$C29,Data!$L$5:$L$1888,Calculation!L$21) -> 0 | N29: =SUMIF(Data!$I$6:$I$1888,Calculation!C29,Data!$G$6:$G$1888) -> 2313495.285 | O29: =COUNTIF(Data!$I$5:$I$1888,"="&C29) -> 51 | P29: 45362.65265
C30: Reporting | D30: =SUMIFS(Data!$G$5:$G$1888,Data!$I$5:$I$1888,Calculation!$C30,Data!$L$5:$L$1888,Calculation!D$21) -> 1515833.408 | E30: =COUNTIFS(Data!$I$5:$I$1888,Calculation!$C30,Data!$L$5:$L$1888,Calculation!D$21) -> 26 | F30: =SUMIFS(Data!$G$5:$G$1888,Data!$I$5:$I$1888,Calculation!$C30,Data!$L$5:$L$1888,Calculation!F$21) -> 1990810.479 | G30: =COUNTIFS(Data!$I$5:$I$1888,Calculation!$C30,Data!$L$5:$L$1888,Calculation!F$21) -> 41 | H30: =SUMIFS(Data!$G$5:$G$1888,Data!$I$5:$I$1888,Calculation!$C30,Data!$L$5:$L$1888,Calculation!H$21) -> 447377.5689 | I30: =COUNTIFS(Data!$I$5:$I$1888,Calculation!$C30,Data!$L$5:$L$1888,Calculation!H$21) -> 12 | J30: =SUMIFS(Data!$G$5:$G$1888,Data!$I$5:$I$1888,Calculation!$C30,Data!$L$5:$L$1888,Calculation!J$21) -> 131431.0834 | K30: =COUNTIFS(Data!$I$5:$I$1888,Calculation!$C30,Data!$L$5:$L$1888,Calculation!J$21) -> 4 | L30: =SUMIFS(Data!$G$5:$G$1888,Data!$I$5:$I$1888,Calculation!$C30,Data!$L$5:$L$1888,Calculation!L$21) -> 0 | M30: =COUNTIFS(Data!$I$5:$I$1888,Calculation!$C30,Data!$L$5:$L$1888,Calculation!L$21) -> 0 | N30: =SUMIF(Data!$I$6:$I$1888,Calculation!C30,Data!$G$6:$G$1888) -> 4085452.539 | O30: =COUNTIF(Data!$I$5:$I$1888,"="&C30) -> 83 | P30: 49222.31975
C31: Consultant | D31: =SUMIFS(Data!$G$5:$G$1888,Data!$I$5:$I$1888,Calculation!$C31,Data!$L$5:$L$1888,Calculation!D$21) -> 1260583.453 | E31: =COUNTIFS(Data!$I$5:$I$1888,Calculation!$C31,Data!$L$5:$L$1888,Calculation!D$21) -> 27 | F31: =SUMIFS(Data!$G$5:$G$1888,Data!$I$5:$I$1888,Calculation!$C31,Data!$L$5:$L$1888,Calculation!F$21) -> 1197161.384 | G31: =COUNTIFS(Data!$I$5:$I$1888,Calculation!$C31,Data!$L$5:$L$1888,Calculation!F$21) -> 25 | H31: =SUMIFS(Data!$G$5:$G$1888,Data!$I$5:$I$1888,Calculation!$C31,Data!$L$5:$L$1888,Calculation!H$21) -> 1493085.572 | I31: =COUNTIFS(Data!$I$5:$I$1888,Calculation!$C31,Data!$L$5:$L$1888,Calculation!H$21) -> 26 | J31: =SUMIFS(Data!$G$5:$G$1888,Data!$I$5:$I$1888,Calculation!$C31,Data!$L$5:$L$1888,Calculation!J$21) -> 756570.9148 | K31: =COUNTIFS(Data!$I$5:$I$1888,Calculation!$C31,Data!$L$5:$L$1888,Calculation!J$21) -> 12 | L31: =SUMIFS(Data!$G$5:$G$1888,Data!$I$5:$I$1888,Calculation!$C31,Data!$L$5:$L$1888,Calculation!L$21) -> 0 | M31: =COUNTIFS(Data!$I$5:$I$1888,Calculation!$C31,Data!$L$5:$L$1888,Calculation!L$21) -> 0 | N31: =SUMIF(Data!$I$6:$I$1888,Calculation!C31,Data!$G$6:$G$1888) -> 4707401.324 | O31: =COUNTIF(Data!$I$5:$I$1888,"="&C31) -> 90 | P31: 52304.45915
C32: Misc. | D32: =SUMIFS(Data!$G$5:$G$1888,Data!$I$5:$I$1888,Calculation!$C32,Data!$L$5:$L$1888,Calculation!D$21) -> 192600 | E32: =COUNTIFS(Data!$I$5:$I$1888,Calculation!$C32,Data!$L$5:$L$1888,Calculation!D$21) -> 3 | F32: =SUMIFS(Data!$G$5:$G$1888,Data!$I$5:$I$1888,Calculation!$C32,Data!$L$5:$L$1888,Calculation!F$21) -> 65000 | G32: =COUNTIFS(Data!$I$5:$I$1888,Calculation!$C32,Data!$L$5:$L$1888,Calculation!F$21) -> 1 | H32: =SUMIFS(Data!$G$5:$G$1888,Data!$I$5:$I$1888,Calculation!$C32,Data!$L$5:$L$1888,Calculation!H$21) -> 90469.26012 | I32: =COUNTIFS(Data!$I$5:$I$1888,Calculation!$C32,Data!$L$5:$L$1888,Calculation!H$21) -> 1 | J32: =SUMIFS(Data!$G$5:$G$1888,Data!$I$5:$I$1888,Calculation!$C32,Data!$L$5:$L$1888,Calculation!J$21) -> 60561.58334 | K32: =COUNTIFS(Data!$I$5:$I$1888,Calculation!$C32,Data!$L$5:$L$1888,Calculation!J$21) -> 2 | L32: =SUMIFS(Data!$G$5:$G$1888,Data!$I$5:$I$1888,Calculation!$C32,Data!$L$5:$L$1888,Calculation!L$21) -> 0 | M32: =COUNTIFS(Data!$I$5:$I$1888,Calculation!$C32,Data!$L$5:$L$1888,Calculation!L$21) -> 0 | N32: =SUMIF(Data!$I$6:$I$1888,Calculation!C32,Data!$G$6:$G$1888) -> 408630.8435 | O32: =COUNTIF(Data!$I$5:$I$1888,"="&C32) -> 7 | P32: 58375.83478
D34: =SUM(D23:D32) -> 39179790.34 | E34: =SUM(E23:E32) -> 775 | F34: 23802846.01 | G34: =SUM(G23:G32) -> 476 | H34: 21945710.11 | I34: 451 | J34: 8557062.26 | K34: 174 | L34: 315479.7918 | M34: 7 | N34: 93800888.52 | O34: 1883
D37: USA | F37: India | H37: UK | J37: Australia | L37: Canada | N37: Pakistan | P37: Netherlands | R37: Other Countries | T37: Total
D38: Salary in USD | E38: No. of Employees | F38: Salary in USD | G38: No. of Employees | H38: Salary in USD | I38: No. of Employees | J38: Salary in USD | K38: No. of Employees | L38: Salary in USD | M38: No. of Employees | N38: Salary in USD | O38: No. of Employees | P38: Salary in USD | Q38: No. of Employees | R38: Salary in USD | S38: No. of Employees | T38: Salary in USD | U38: No. of Employees
C40: Analyst | D40: =SUMIFS(Data!$G$5:$G$1888,Data!$I$5:$I$1888,Calculation!$C40,Data!$K$5:$K$1888,Calculation!D$37) -> 14951363 | E40: =COUNTIFS(Data!$I$5:$I$1888,Calculation!$C40,Data!$K$5:$K$1888,Calculation!D$37) -> 205 | F40: =SUMIFS(Data!$G$5:$G$1888,Data!$I$5:$I$1888,Calculation!$C40,Data!$K$5:$K$1888,Calculation!F$37) -> 2486857.437 | G40: =COUNTIFS(Data!$I$5:$I$1888,Calculation!$C40,Data!$K$5:$K$1888,Calculation!F$37) -> 193 | H40: =SUMIFS(Data!$G$5:$G$1888,Data!$I$5:$I$1888,Calculation!$C40,Data!$K$5:$K$1888,Calculation!H$37) -> 3725724.408 | I40: =COUNTIFS(Data!$I$5:$I$1888,Calculation!$C40,Data!$K$5:$K$1888,Calculation!H$37) -> 61 | J40: =SUMIFS(Data!$G$5:$G$1888,Data!$I$5:$I$1888,Calculation!$C40,Data!$K$5:$K$1888,Calculation!J$37) -> 2841823.636 | K40: =COUNTIFS(Data!$I$5:$I$1888,Calculation!$C40,Data!$K$5:$K$1888,Calculation!J$37) -> 31 | L40: =SUMIFS(Data!$G$5:$G$1888,Data!$I$5:$I$1888,Calculation!$C40,Data!$K$5:$K$1888,Calculation!L$37) -> 1024105.131 | M40: =COUNTIFS(Data!$I$5:$I$1888,Calculation!$C40,Data!$K$5:$K$1888,Calculation!L$37) -> 17 | N40: =SUMIFS(Data!$G$5:$G$1888,Data!$I$5:$I$1888,Calculation!$C40,Data!$K$5:$K$1888,Calculation!N$37) -> 195539.925 | O40: =COUNTIFS(Data!$I$5:$I$1888,Calculation!$C40,Data!$K$5:$K$1888,Calculation!N$37) -> 16 | P40: =SUMIFS(Data!$G$5:$G$1888,Data!$I$5:$I$1888,Calculation!$C40,Data!$K$5:$K$1888,Calculation!P$37) -> 583748.5422 | Q40: =COUNTIFS(Data!$I$5:$I$1888,Calculation!$C40,Data!$K$5:$K$1888,Calculation!P$37) -> 9 | R40: =SUMIFS(Data!$G$5:$G$1888,Data!$I$5:$I$1888,Calculation!$C40,Data!$K$5:$K$1888,Calculation!R$37) -> 7092568.921 | S40: =COUNTIFS(Data!$I$5:$I$1888,Calculation!$C40,Data!$K$5:$K$1888,Calculation!R$37) -> 112 | T40: =R40+P40+N40+L40+J40+H40+F40+D40 -> 32901731 | U40: =S40+Q40+O40+M40+K40+I40+G40+E40 -> 644
C41: Controller | D41: =SUMIFS(Data!$G$5:$G$1888,Data!$I$5:$I$1888,Calculation!$C41,Data!$K$5:$K$1888,Calculation!D$37) -> 821160 | E41: =COUNTIFS(Data!$I$5:$I$1888,Calculation!$C41,Data!$K$5:$K$1888,Calculation!D$37) -> 11 | F41: =SUMIFS(Data!$G$5:$G$1888,Data!$I$5:$I$1888,Calculation!$C41,Data!$K$5:$K$1888,Calculation!F$37) -> 160844.3018 | G41: =COUNTIFS(Data!$I$5:$I$1888,Calculation!$C41,Data!$K$5:$K$1888,Calculation!F$37) -> 16 | H41: =SUMIFS(Data!$G$5:$G$1888,Data!$I$5:$I$1888,Calculation!$C41,Data!$K$5:$K$1888,Calculation!H$37) -> 278195.465 | I41: =COUNTIFS(Data!$I$5:$I$1888,Calculation!$C41,Data!$K$5:$K$1888,Calculation!H$37) -> 5 | J41: =SUMIFS(Data!$G$5:$G$1888,Data!$I$5:$I$1888,Calculation!$C41,Data!$K$5:$K$1888,Calculation!J$37) -> 36000 | K41: =COUNTIFS(Data!$I$5:$I$1888,Calculation!$C41,Data!$K$5:$K$1888,Calculation!J$37) -> 1 | L41: =SUMIFS(Data!$G$5:$G$1888,Data!$I$5:$I$1888,Calculation!$C41,Data!$K$5:$K$1888,Calculation!L$37) -> 111406.1191 | M41: =COUNTIFS(Data!$I$5:$I$1888,Calculation!$C41,Data!$K$5:$K$1888,Calculation!L$37) -> 2 | N41: =SUMIFS(Data!$G$5:$G$1888,Data!$I$5:$I$1888,Calculation!$C41,Data!$K$5:$K$1888,Calculation!N$37) -> 0 | O41: =COUNTIFS(Data!$I$5:$I$1888,Calculation!$C41,Data!$K$5:$K$1888,Calculation!N$37) -> 0 | P41: =SUMIFS(Data!$G$5:$G$1888,Data!$I$5:$I$1888,Calculation!$C41,Data!$K$5:$K$1888,Calculation!P$37) -> 0 | Q41: =COUNTIFS(Data!$I$5:$I$1888,Calculation!$C41,Data!$K$5:$K$1888,Calculation!P$37) -> 0 | R41: =SUMIFS(Data!$G$5:$G$1888,Data!$I$5:$I$1888,Calculation!$C41,Data!$K$5:$K$1888,Calculation!R$37) -> 2025906.824 | S41: =COUNTIFS(Data!$I$5:$I$1888,Calculation!$C41,Data!$K$5:$K$1888,Calculation!R$37) -> 29 | T41: 3433512.71 | U41: 64
C42: Engineer | D42: =SUMIFS(Data!$G$5:$G$1888,Data!$I$5:$I$1888,Calculation!$C42,Data!$K$5:$K$1888,Calculation!D$37) -> 769000 | E42: =COUNTIFS(Data!$I$5:$I$1888,Calculation!$C42,Data!$K$5:$K$1888,Calculation!D$37) -> 13 | F42: =SUMIFS(Data!$G$5:$G$1888,Data!$I$5:$I$1888,Calculation!$C42,Data!$K$5:$K$1888,Calculation!F$37) -> 423382.0179 | G42: =COUNTIFS(Data!$I$5:$I$1888,Calculation!$C42,Data!$K$5:$K$1888,Calculation!F$37) -> 27 | H42: =SUMIFS(Data!$G$5:$G$1888,Data!$I$5:$I$1888,Calculation!$C42,Data!$K$5:$K$1888,Calculation!H$37) -> 97349.49862 | I42: =COUNTIFS(Data!$I$5:$I$1888,Calculation!$C42,Data!$K$5:$K$1888,Calculation!H$37) -> 2 | J42: =SUMIFS(Data!$G$5:$G$1888,Data!$I$5:$I$1888,Calculation!$C42,Data!$K$5:$K$1888,Calculation!J$37) -> 101990.9656 | K42: =COUNTIFS(Data!$I$5:$I$1888,Calculation!$C42,Data!$K$5:$K$1888,Calculation!J$37) -> 1 | L42: =SUMIFS(Data!$G$5:$G$1888,Data!$I$5:$I$1888,Calculation!$C42,Data!$K$5:$K$1888,Calculation!L$37) -> 458246.4697 | M42: =COUNTIFS(Data!$I$5:$I$1888,Calculation!$C42,Data!$K$5:$K$1888,Calculation!L$37) -> 4 | N42: =SUMIFS(Data!$G$5:$G$1888,Data!$I$5:$I$1888,Calculation!$C42,Data!$K$5:$K$1888,Calculation!N$37) -> 0 | O42: =COUNTIFS(Data!$I$5:$I$1888,Calculation!$C42,Data!$K$5:$K$1888,Calculation!N$37) -> 0 | P42: =SUMIFS(Data!$G$5:$G$1888,Data!$I$5:$I$1888,Calculation!$C42,Data!$K$5:$K$1888,Calculation!P$37) -> 140379.138 | Q42: =COUNTIFS(Data!$I$5:$I$1888,Calculation!$C42,Data!$K$5:$K$1888,Calculation!P$37) -> 2 | R42: =SUMIFS(Data!$G$5:$G$1888,Data!$I$5:$I$1888,Calculation!$C42,Data!$K$5:$K$1888,Calculation!R$37) -> 848124.2852 | S42: =COUNTIFS(Data!$I$5:$I$1888,Calculation!$C42,Data!$K$5:$K$1888,Calculation!R$37) -> 16 | T42: 2838472.375 | U42: 65
C43: Manager | D43: =SUMIFS(Data!$G$5:$G$1888,Data!$I$5:$I$1888,Calculation!$C43,Data!$K$5:$K$1888,Calculation!D$37) -> 8765498 | E43: =COUNTIFS(Data!$I$5:$I$1888,Calculation!$C43,Data!$K$5:$K$1888,Calculation!D$37) -> 124 | F43: =SUMIFS(Data!$G$5:$G$1888,Data!$I$5:$I$1888,Calculation!$C43,Data!$K$5:$K$1888,Calculation!F$37) -> 1978173.603 | G43: =COUNTIFS(Data!$I$5:$I$1888,Calculation!$C43,Data!$K$5:$K$1888,Calculation!F$37) -> 164 | H43: =SUMIFS(Data!$G$5:$G$1888,Data!$I$5:$I$1888,Calculation!$C43,Data!$K$5:$K$1888,Calculation!H$37) -> 2381900.114 | I43: =COUNTIFS(Data!$I$5:$I$1888,Calculation!$C43,Data!$K$5:$K$1888,Calculation!H$37) -> 34 | J43: =SUMIFS(Data!$G$5:$G$1888,Data!$I$5:$I$1888,Calculation!$C43,Data!$K$5:$K$1888,Calculation!J$37) -> 2574099.287 | K43: =COUNTIFS(Data!$I$5:$I$1888,Calculation!$C43,Data!$K$5:$K$1888,Calculation!J$37) -> 26 | L43: =SUMIFS(Data!$G$5:$G$1888,Data!$I$5:$I$1888,Calculation!$C43,Data!$K$5:$K$1888,Calculation!L$37) -> 594283.1294 | M43: =COUNTIFS(Data!$I$5:$I$1888,Calculation!$C43,Data!$K$5:$K$1888,Calculation!L$37) -> 9 | N43: =SUMIFS(Data!$G$5:$G$1888,Data!$I$5:$I$1888,Calculation!$C43,Data!$K$5:$K$1888,Calculation!N$37) -> 45638.7134 | O43: =COUNTIFS(Data!$I$5:$I$1888,Calculation!$C43,Data!$K$5:$K$1888,Calculation!N$37) -> 5 | P43: =SUMIFS(Data!$G$5:$G$1888,Data!$I$5:$I$1888,Calculation!$C43,Data!$K$5:$K$1888,Calculation!P$37) -> 283299.0749 | Q43: =COUNTIFS(Data!$I$5:$I$1888,Calculation!$C43,Data!$K$5:$K$1888,Calculation!P$37) -> 5 | R43: =SUMIFS(Data!$G$5:$G$1888,Data!$I$5:$I$1888,Calculation!$C43,Data!$K$5:$K$1888,Calculation!R$37) -> 6892673.817 | S43: =COUNTIFS(Data!$I$5:$I$1888,Calculation!$C43,Data!$K$5:$K$1888,Calculation!R$37) -> 105 | T43: 23515565.74 | U43: 472
C44: CXO or Top Mgmt. | D44: =SUMIFS(Data!$G$5:$G$1888,Data!$I$5:$I$1888,Calculation!$C44,Data!$K$5:$K$1888,Calculation!D$37) -> 1360600 | E44: =COUNTIFS(Data!$I$5:$I$1888,Calculation!$C44,Data!$K$5:$K$1888,Calculation!D$37) -> 17 | F44: =SUMIFS(Data!$G$5:$G$1888,Data!$I$5:$I$1888,Calculation!$C44,Data!$K$5:$K$1888,Calculation!F$37) -> 208018.8864 | G44: =COUNTIFS(Data!$I$5:$I$1888,Calculation!$C44,Data!$K$5:$K$1888,Calculation!F$37) -> 21 | H44: =SUMIFS(Data!$G$5:$G$1888,Data!$I$5:$I$1888,Calculation!$C44,Data!$K$5:$K$1888,Calculation!H$37) -> 146584.5793 | I44: =COUNTIFS(Data!$I$5:$I$1888,Calculation!$C44,Data!$K$5:$K$1888,Calculation!H$37) -> 3 | J44: =SUMIFS(Data!$G$5:$G$1888,Data!$I$5:$I$1888,Calculation!$C44,Data!$K$5:$K$1888,Calculation!J$37) -> 410003.6819 | K44: =COUNTIFS(Data!$I$5:$I$1888,Calculation!$C44,Data!$K$5:$K$1888,Calculation!J$37) -> 5 | L44: =SUMIFS(Data!$G$5:$G$1888,Data!$I$5:$I$1888,Calculation!$C44,Data!$K$5:$K$1888,Calculation!L$37) -> 119970.1058 | M44: =COUNTIFS(Data!$I$5:$I$1888,Calculation!$C44,Data!$K$5:$K$1888,Calculation!L$37) -> 2 | N44: =SUMIFS(Data!$G$5:$G$1888,Data!$I$5:$I$1888,Calculation!$C44,Data!$K$5:$K$1888,Calculation!N$37) -> 0 | O44: =COUNTIFS(Data!$I$5:$I$1888,Calculation!$C44,Data!$K$5:$K$1888,Calculation!N$37) -> 0 | P44: =SUMIFS(Data!$G$5:$G$1888,Data!$I$5:$I$1888,Calculation!$C44,Data!$K$5:$K$1888,Calculation!P$37) -> 0 | Q44: =COUNTIFS(Data!$I$5:$I$1888,Calculation!$C44,Data!$K$5:$K$1888,Calculation!P$37) -> 0 | R44: =SUMIFS(Data!$G$5:$G$1888,Data!$I$5:$I$1888,Calculation!$C44,Data!$K$5:$K$1888,Calculation!R$37) -> 877075.0988 | S44: =COUNTIFS(Data!$I$5:$I$1888,Calculation!$C44,Data!$K$5:$K$1888,Calculation!R$37) -> 13 | T44: 3122252.352 | U44: 61
C45: Accountant | D45: =SUMIFS(Data!$G$5:$G$1888,Data!$I$5:$I$1888,Calculation!$C45,Data!$K$5:$K$1888,Calculation!D$37) -> 2736360 | E45: =COUNTIFS(Data!$I$5:$I$1888,Calculation!$C45,Data!$K$5:$K$1888,Calculation!D$37) -> 37 | F45: =SUMIFS(Data!$G$5:$G$1888,Data!$I$5:$I$1888,Calculation!$C45,Data!$K$5:$K$1888,Calculation!F$37) -> 468830.8362 | G45: =COUNTIFS(Data!$I$5:$I$1888,Calculation!$C45,Data!$K$5:$K$1888,Calculation!F$37) -> 32 | H45: =SUMIFS(Data!$G$5:$G$1888,Data!$I$5:$I$1888,Calculation!$C45,Data!$K$5:$K$1888,Calculation!H$37) -> 278385.8573 | I45: =COUNTIFS(Data!$I$5:$I$1888,Calculation!$C45,Data!$K$5:$K$1888,Calculation!H$37) -> 6 | J45: =SUMIFS(Data!$G$5:$G$1888,Data!$I$5:$I$1888,Calculation!$C45,Data!$K$5:$K$1888,Calculation!J$37) -> 448908.6508 | K45: =COUNTIFS(Data!$I$5:$I$1888,Calculation!$C45,Data!$K$5:$K$1888,Calculation!J$37) -> 5 | L45: =SUMIFS(Data!$G$5:$G$1888,Data!$I$5:$I$1888,Calculation!$C45,Data!$K$5:$K$1888,Calculation!L$37) -> 76702.1988 | M45: =COUNTIFS(Data!$I$5:$I$1888,Calculation!$C45,Data!$K$5:$K$1888,Calculation!L$37) -> 1 | N45: =SUMIFS(Data!$G$5:$G$1888,Data!$I$5:$I$1888,Calculation!$C45,Data!$K$5:$K$1888,Calculation!N$37) -> 16800 | O45: =COUNTIFS(Data!$I$5:$I$1888,Calculation!$C45,Data!$K$5:$K$1888,Calculation!N$37) -> 1 | P45: =SUMIFS(Data!$G$5:$G$1888,Data!$I$5:$I$1888,Calculation!$C45,Data!$K$5:$K$1888,Calculation!P$37) -> 63519.97195 | Q45: =COUNTIFS(Data!$I$5:$I$1888,Calculation!$C45,Data!$K$5:$K$1888,Calculation!P$37) -> 1 | R45: =SUMIFS(Data!$G$5:$G$1888,Data!$I$5:$I$1888,Calculation!$C45,Data!$K$5:$K$1888,Calculation!R$37) -> 2116671.236 | S45: =COUNTIFS(Data!$I$5:$I$1888,Calculation!$C45,Data!$K$5:$K$1888,Calculation!R$37) -> 34 | T45: 6206178.751 | U45: 117
C46: Specialist | D46: =SUMIFS(Data!$G$5:$G$1888,Data!$I$5:$I$1888,Calculation!$C46,Data!$K$5:$K$1888,Calculation!D$37) -> 1089532 | E46: =COUNTIFS(Data!$I$5:$I$1888,Calculation!$C46,Data!$K$5:$K$1888,Calculation!D$37) -> 14 | F46: =SUMIFS(Data!$G$5:$G$1888,Data!$I$5:$I$1888,Calculation!$C46,Data!$K$5:$K$1888,Calculation!F$37) -> 103346.8063 | G46: =COUNTIFS(Data!$I$5:$I$1888,Calculation!$C46,Data!$K$5:$K$1888,Calculation!F$37) -> 13 | H46: =SUMIFS(Data!$G$5:$G$1888,Data!$I$5:$I$1888,Calculation!$C46,Data!$K$5:$K$1888,Calculation!H$37) -> 69506.30944 | I46: =COUNTIFS(Data!$I$5:$I$1888,Calculation!$C46,Data!$K$5:$K$1888,Calculation!H$37) -> 2 | J46: =SUMIFS(Data!$G$5:$G$1888,Data!$I$5:$I$1888,Calculation!$C46,Data!$K$5:$K$1888,Calculation!J$37) -> 152986.4485 | K46: =COUNTIFS(Data!$I$5:$I$1888,Calculation!$C46,Data!$K$5:$K$1888,Calculation!J$37) -> 1 | L46: =SUMIFS(Data!$G$5:$G$1888,Data!$I$5:$I$1888,Calculation!$C46,Data!$K$5:$K$1888,Calculation!L$37) -> 0 | M46: =COUNTIFS(Data!$I$5:$I$1888,Calculation!$C46,Data!$K$5:$K$1888,Calculation!L$37) -> 0 | N46: =SUMIFS(Data!$G$5:$G$1888,Data!$I$5:$I$1888,Calculation!$C46,Data!$K$5:$K$1888,Calculation!N$37) -> 61925 | O46: =COUNTIFS(Data!$I$5:$I$1888,Calculation!$C46,Data!$K$5:$K$1888,Calculation!N$37) -> 4 | P46: =SUMIFS(Data!$G$5:$G$1888,Data!$I$5:$I$1888,Calculation!$C46,Data!$K$5:$K$1888,Calculation!P$37) -> 152447.9327 | Q46: =COUNTIFS(Data!$I$5:$I$1888,Calculation!$C46,Data!$K$5:$K$1888,Calculation!P$37) -> 2 | R46: =SUMIFS(Data!$G$5:$G$1888,Data!$I$5:$I$1888,Calculation!$C46,Data!$K$5:$K$1888,Calculation!R$37) -> 602109.6038 | S46: =COUNTIFS(Data!$I$5:$I$1888,Calculation!$C46,Data!$K$5:$K$1888,Calculation!R$37) -> 11 | T46: 2231854.101 | U46: 47
C47: Reporting | D47: =SUMIFS(Data!$G$5:$G$1888,Data!$I$5:$I$1888,Calculation!$C47,Data!$K$5:$K$1888,Calculation!D$37) -> 1326160 | E47: =COUNTIFS(Data!$I$5:$I$1888,Calculation!$C47,Data!$K$5:$K$1888,Calculation!D$37) -> 17 | F47: =SUMIFS(Data!$G$5:$G$1888,Data!$I$5:$I$1888,Calculation!$C47,Data!$K$5:$K$1888,Calculation!F$37) -> 622333.4992 | G47: =COUNTIFS(Data!$I$5:$I$1888,Calculation!$C47,Data!$K$5:$K$1888,Calculation!F$37) -> 26 | H47: =SUMIFS(Data!$G$5:$G$1888,Data!$I$5:$I$1888,Calculation!$C47,Data!$K$5:$K$1888,Calculation!H$37) -> 345183.0416 | I47: =COUNTIFS(Data!$I$5:$I$1888,Calculation!$C47,Data!$K$5:$K$1888,Calculation!H$37) -> 5 | J47: =SUMIFS(Data!$G$5:$G$1888,Data!$I$5:$I$1888,Calculation!$C47,Data!$K$5:$K$1888,Calculation!J$37) -> 337590.0963 | K47: =COUNTIFS(Data!$I$5:$I$1888,Calculation!$C47,Data!$K$5:$K$1888,Calculation!J$37) -> 4 | L47: =SUMIFS(Data!$G$5:$G$1888,Data!$I$5:$I$1888,Calculation!$C47,Data!$K$5:$K$1888,Calculation!L$37) -> 49168.07615 | M47: =COUNTIFS(Data!$I$5:$I$1888,Calculation!$C47,Data!$K$5:$K$1888,Calculation!L$37) -> 1 | N47: =SUMIFS(Data!$G$5:$G$1888,Data!$I$5:$I$1888,Calculation!$C47,Data!$K$5:$K$1888,Calculation!N$37) -> 13603.0161 | O47: =COUNTIFS(Data!$I$5:$I$1888,Calculation!$C47,Data!$K$5:$K$1888,Calculation!N$37) -> 1 | P47: =SUMIFS(Data!$G$5:$G$1888,Data!$I$5:$I$1888,Calculation!$C47,Data!$K$5:$K$1888,Calculation!P$37) -> 43828.78065 | Q47: =COUNTIFS(Data!$I$5:$I$1888,Calculation!$C47,Data!$K$5:$K$1888,Calculation!P$37) -> 1 | R47: =SUMIFS(Data!$G$5:$G$1888,Data!$I$5:$I$1888,Calculation!$C47,Data!$K$5:$K$1888,Calculation!R$37) -> 645720.1719 | S47: =COUNTIFS(Data!$I$5:$I$1888,Calculation!$C47,Data!$K$5:$K$1888,Calculation!R$37) -> 11 | T47: 3383586.682 | U47: 66
C48: Consultant | D48: =SUMIFS(Data!$G$5:$G$1888,Data!$I$5:$I$1888,Calculation!$C48,Data!$K$5:$K$1888,Calculation!D$37) -> 1140178 | E48: =COUNTIFS(Data!$I$5:$I$1888,Calculation!$C48,Data!$K$5:$K$1888,Calculation!D$37) -> 17 | F48: =SUMIFS(Data!$G$5:$G$1888,Data!$I$5:$I$1888,Calculation!$C48,Data!$K$5:$K$1888,Calculation!F$37) -> 269339.946 | G48: =COUNTIFS(Data!$I$5:$I$1888,Calculation!$C48,Data!$K$5:$K$1888,Calculation!F$37) -> 19 | H48: =SUMIFS(Data!$G$5:$G$1888,Data!$I$5:$I$1888,Calculation!$C48,Data!$K$5:$K$1888,Calculation!H$37) -> 401704.7944 | I48: =COUNTIFS(Data!$I$5:$I$1888,Calculation!$C48,Data!$K$5:$K$1888,Calculation!H$37) -> 5 | J48: =SUMIFS(Data!$G$5:$G$1888,Data!$I$5:$I$1888,Calculation!$C48,Data!$K$5:$K$1888,Calculation!J$37) -> 391645.3081 | K48: =COUNTIFS(Data!$I$5:$I$1888,Calculation!$C48,Data!$K$5:$K$1888,Calculation!J$37) -> 4 | L48: =SUMIFS(Data!$G$5:$G$1888,Data!$I$5:$I$1888,Calculation!$C48,Data!$K$5:$K$1888,Calculation!L$37) -> 180334.4609 | M48: =COUNTIFS(Data!$I$5:$I$1888,Calculation!$C48,Data!$K$5:$K$1888,Calculation!L$37) -> 3 | N48: =SUMIFS(Data!$G$5:$G$1888,Data!$I$5:$I$1888,Calculation!$C48,Data!$K$5:$K$1888,Calculation!N$37) -> 4457.917261 | O48: =COUNTIFS(Data!$I$5:$I$1888,Calculation!$C48,Data!$K$5:$K$1888,Calculation!N$37) -> 1 | P48: =SUMIFS(Data!$G$5:$G$1888,Data!$I$5:$I$1888,Calculation!$C48,Data!$K$5:$K$1888,Calculation!P$37) -> 95279.95792 | Q48: =COUNTIFS(Data!$I$5:$I$1888,Calculation!$C48,Data!$K$5:$K$1888,Calculation!P$37) -> 1 | R48: =SUMIFS(Data!$G$5:$G$1888,Data!$I$5:$I$1888,Calculation!$C48,Data!$K$5:$K$1888,Calculation!R$37) -> 1623287.158 | S48: =COUNTIFS(Data!$I$5:$I$1888,Calculation!$C48,Data!$K$5:$K$1888,Calculation!R$37) -> 25 | T48: 4106227.542 | U48: 75
C49: Misc. | D49: =SUMIFS(Data!$G$5:$G$1888,Data!$I$5:$I$1888,Calculation!$C49,Data!$K$5:$K$1888,Calculation!D$37) -> 233600 | E49: =COUNTIFS(Data!$I$5:$I$1888,Calculation!$C49,Data!$K$5:$K$1888,Calculation!D$37) -> 4 | F49: =SUMIFS(Data!$G$5:$G$1888,Data!$I$5:$I$1888,Calculation!$C49,Data!$K$5:$K$1888,Calculation!F$37) -> 3561.583337 | G49: =COUNTIFS(Data!$I$5:$I$1888,Calculation!$C49,Data!$K$5:$K$1888,Calculation!F$37) -> 1 | H49: =SUMIFS(Data!$G$5:$G$1888,Data!$I$5:$I$1888,Calculation!$C49,Data!$K$5:$K$1888,Calculation!H$37) -> 81000 | I49: =COUNTIFS(Data!$I$5:$I$1888,Calculation!$C49,Data!$K$5:$K$1888,Calculation!H$37) -> 1 | J49: =SUMIFS(Data!$G$5:$G$1888,Data!$I$5:$I$1888,Calculation!$C49,Data!$K$5:$K$1888,Calculation!J$37) -> 0 | K49: =COUNTIFS(Data!$I$5:$I$1888,Calculation!$C49,Data!$K$5:$K$1888,Calculation!J$37) -> 0 | L49: =SUMIFS(Data!$G$5:$G$1888,Data!$I$5:$I$1888,Calculation!$C49,Data!$K$5:$K$1888,Calculation!L$37) -> 90469.26012 | M49: =COUNTIFS(Data!$I$5:$I$1888,Calculation!$C49,Data!$K$5:$K$1888,Calculation!L$37) -> 1 | N49: =SUMIFS(Data!$G$5:$G$1888,Data!$I$5:$I$1888,Calculation!$C49,Data!$K$5:$K$1888,Calculation!N$37) -> 0 | O49: =COUNTIFS(Data!$I$5:$I$1888,Calculation!$C49,Data!$K$5:$K$1888,Calculation!N$37) -> 0 | P49: =SUMIFS(Data!$G$5:$G$1888,Data!$I$5:$I$1888,Calculation!$C49,Data!$K$5:$K$1888,Calculation!P$37) -> 0 | Q49: =COUNTIFS(Data!$I$5:$I$1888,Calculation!$C49,Data!$K$5:$K$1888,Calculation!P$37) -> 0 | R49: =SUMIFS(Data!$G$5:$G$1888,Data!$I$5:$I$1888,Calculation!$C49,Data!$K$5:$K$1888,Calculation!R$37) -> 0 | S49: =COUNTIFS(Data!$I$5:$I$1888,Calculation!$C49,Data!$K$5:$K$1888,Calculation!R$37) -> 0 | T49: 408630.8435 | U49: 7
D51: =SUM(D40:D49) -> 33193451 | E51: =SUM(E40:E49) -> 459 | F51: =SUM(F40:F49) -> 6724688.917 | G51: =SUM(G40:G49) -> 512 | H51: =SUM(H40:H49) -> 7805534.068 | I51: =SUM(I40:I49) -> 124 | J51: =SUM(J40:J49) -> 7295048.075 | K51: =SUM(K40:K49) -> 78 | L51: =SUM(L40:L49) -> 2704684.951 | M51: =SUM(M40:M49) -> 40 | N51: =SUM(N40:N49) -> 337964.5718 | O51: =SUM(O40:O49) -> 28 | P51: =SUM(P40:P49) -> 1362503.398 | Q51: =SUM(Q40:Q49) -> 21 | R51: =SUM(R40:R49) -> 22724137.12 | S51: =SUM(S40:S49) -> 356 | T51: =SUM(T40:T49) -> 82148012.1 | U51: =SUM(U40:U49) -> 1618
D53: 100000
B55: =D55/$D$64 -> 0.4040688284 | C55: USA | D55: =(D51)/100000 -> 331.93451 | E55: =E51 -> 459 | F55: =D55/E55*100000 -> 72316.88671
B56: =D56/$D$64 -> 0.08186064088 | C56: India | D56: =(F51)/100000 -> 67.24688917 | E56: =G51 -> 512 | F56: =D56/E56*100000 -> 13134.15804
B57: 0.09501793007 | C57: UK | D57: =(H51)/100000 -> 78.05534068 | E57: =I51 -> 124 | F57: 62947.85539
B58: 0.08880370795 | C58: Australia | D58: =(J51)/100000 -> 72.95048075 | E58: =K51 -> 78 | F58: 93526.25737
B59: 0.03292453319 | C59: Canada | D59: =(L51)/100000 -> 27.04684951 | E59: =M51 -> 40 | F59: 67617.12377
B60: 0.004114093125 | C60: Pakistan | D60: =(N51)/100000 -> 3.379645718 | E60: =O51 -> 28 | F60: 12070.16328
B61: 0.01658595702 | C61: Netherlands | D61: =(P51)/100000 -> 13.62503398 | E61: =Q51 -> 21 | F61: 64881.11421
B62: 0.2766243094 | C62: Other Countries | D62: =(R51)/100000 -> 227.2413712 | E62: =S51 -> 356 | F62: 63831.84583
C64: Total | D64: =SUM(D55:D63) -> 821.480121 | E64: =SUM(E55:E63) -> 1618 | F64: =E55/E64 -> 0.28368356
D67: No. of Employees | E67: Experience in Years
D69: 548 | E69: Blank | F69: =SUM(Data!G1341:G1888) -> 19024434.61 | G69: =F69/D69 -> 34716.12155
B70: 5 | D70: =COUNTIF(Data!$M$6:$M$1888,"<"&B70) -> 420 | E70: Less than 5 | F70: =SUMIF(Data!$M$6:$M$1888,"<"&B70,Data!$G$6:$G$1888) -> 21865036.92 | G70: =F70/D70 -> 52059.61172
B71: 10 | D71: =COUNTIF(Data!$M$6:$M$1888,"<"&B71)-D70 -> 417 | E71: >=5 but < 10 | F71: =SUMIF(Data!$M$6:$M$1888,"<"&B71,Data!$G$6:$G$1888)-F70 -> 22990083.11 | G71: =F71/D71 -> 55132.09379
B72: 20 | D72: =COUNTIF(Data!$M$6:$M$1888,"<"&B72)-(D71+D70) -> 355 | E72: >=10 but < 20 | F72: =SUMIF(Data!$M$6:$M$1888,"<"&B72,Data!$G$6:$G$1888)-(F71+F70) -> 22238165.31 | G72: =F72/D72 -> 62642.71917
B73: 41 | D73: =COUNTIF(Data!$M$6:$M$1888,"<"&B73)-(SUM(D70:D72)) -> 143 | E73: > than 20 | F73: =SUMIF(Data!$M$6:$M$1888,"<"&B73,Data!$G$6:$G$1888)-(SUM(F70:F72)) -> 7683168.565 | G73: =F73/D73 -> 53728.4515
D75: =SUM(D69:D73) -> 1883 | F75: =SUM(F69:F73) -> 93800888.52

Sheet Pivottwo
A3: Count of Salary in USD | B3: Column Labels
A4: Row Labels | B4: 1 or 2 hours a day | C4: 2 to 3 hours per day | D4: 4 to 6 hours a day | E4: All the 8 hours baby, all the 8! | F4: Excel ?!? What Excel? | G4: Grand Total
A5: Accountant | B5: 4 | C5: 34 | D5: 58 | E5: 39 | G5: 135
A6: Analyst | B6: 57 | C6: 137 | D6: 329 | E6: 215 | F6: 5 | G6: 743
A7: Consultant | B7: 12 | C7: 26 | D7: 27 | E7: 25 | G7: 90
A8: Controller | B8: 2 | C8: 15 | D8: 36 | E8: 14 | G8: 67
A9: CXO or Top Mgmt. | B9: 10 | C9: 22 | D9: 32 | E9: 11 | G9: 75
A10: Engineer | B10: 14 | C10: 26 | D10: 26 | E10: 8 | G10: 74
A11: Manager | B11: 65 | C11: 166 | D11: 215 | E11: 110 | F11: 2 | G11: 558
A12: Misc. | B12: 2 | C12: 1 | D12: 3 | E12: 1 | G12: 7
A13: Reporting | B13: 4 | C13: 12 | D13: 26 | E13: 41 | G13: 83
A14: Specialist | B14: 4 | C14: 12 | D14: 23 | E14: 12 | G14: 51
A15: Grand Total | B15: 174 | C15: 451 | D15: 775 | E15: 476 | F15: 7 | G15: 1883

Sheet Pivotone
A3: Sum of Salary in USD | B3: Column Labels
A4: Row Labels | B4: 1 or 2 hours a day | C4: 2 to 3 hours per day | D4: 4 to 6 hours a day | E4: All the 8 hours baby, all the 8! | F4: Excel ?!? What Excel? | G4: Grand Total
A5: Accountant | B5: 87201.9731 | C5: 1278065.895 | D5: 4035501.317 | E5: 1915750.293 | G5: 7316519.479
A6: Analyst | B6: 2497698.767 | C6: 6654434.117 | D6: 15695244.7 | E6: 9234925.421 | F6: 315453.6706 | G6: 34397756.68
A7: Consultant | B7: 547484.9233 | C7: 1674624.022 | D7: 1675134.392 | E7: 1768322.652 | G7: 5665565.99
A8: Controller | B8: 74995.48282 | C8: 1162435.932 | D8: 2279259.256 | E8: 845272.5737 | G8: 4361963.245
A9: CXO or Top Mgmt. | B9: 793531.5065 | C9: 2653298.71 | D9: 2958563.539 | E9: 889546.9161 | G9: 7294940.671
A10: Engineer | B10: 494929.7947 | C10: 1733476.714 | D10: 1271639.364 | E10: 326875.3333 | G10: 3826921.205
A11: Manager | B11: 3739019.213 | C11: 7971864.797 | D11: 10244727.04 | E11: 3897827.27 | F11: 87000 | G11: 25940438.32
A12: Misc. | B12: 164461 | C12: 41712.23119 | D12: 94493.10834 | E12: 21000 | G12: 321666.3395
A13: Reporting | B13: 52287.46251 | C13: 353950.8034 | D13: 465160.3977 | E13: 753256.4946 | G13: 1624655.158
A14: Specialist | B14: 200779.2293 | C14: 629289.4097 | D14: 1133296.255 | E14: 1087096.539 | G14: 3050461.433
A15: Grand Total | B15: 8652389.352 | C15: 24153152.63 | D15: 39853019.37 | E15: 20739873.49 | F15: 402453.6706 | G15: 93800888.52

Sheet mapping
B1: Mapping Sheet | G1: Source: Xrates on 6/21/2012 | H1: and xe.com
B2: Currency Mapping | L2: Country Mapping
B3: Currency | C3: in USD | G3: Value of 1 American Dollar | L3: Actual | M3: Mapping
B4: USD | C4: 1 | G4: Argentine Peso | H4: 4.49273 | I4: ARS | L4: USA | M4: USA
B5: EUR | C5: =1/INDEX($H$4:$H$64,MATCH(tblXrate[[#This Row],[Currency]],$I$4:$I$64,0)) -> 1.270399439 | G5: Australian Dollar | H5: 0.980479 | I5: AUD | L5: India | M5: India
B6: PKR | C6: =1/INDEX($H$4:$H$64,MATCH(tblXrate[[#This Row],[Currency]],$I$4:$I$64,0)) -> 0.01061408872 | G6: Botswana Pula | H6: 7.65697 | I6: BWP | L6: UK | M6: UK
B7: INR | C7: =1/INDEX($H$4:$H$64,MATCH(tblXrate[[#This Row],[Currency]],$I$4:$I$64,0)) -> 0.01780791669 | G7: Brazilian Real | H7: 2.02314 | I7: BRL | L7: Australia | M7: Australia
B8: GBP | C8: =1/INDEX($H$4:$H$64,MATCH(tblXrate[[#This Row],[Currency]],$I$4:$I$64,0)) -> 1.576178272 | G8: British Pound | H8: 0.634446 | I8: GBP | L8: Canada | M8: Canada
B9: AUD | C9: =1/INDEX($H$4:$H$64,MATCH(tblXrate[[#This Row],[Currency]],$I$4:$I$64,0)) -> 1.019909656 | G9: Brunei dollar | H9: 1.2687 | I9: BND | L9: Pakistan | M9: Pakistan
B10: CAD | C10: =1/INDEX($H$4:$H$64,MATCH(tblXrate[[#This Row],[Currency]],$I$4:$I$64,0)) -> 0.983361523 | G10: Bulgarian Lev | H10: 1.53952 | I10: BGN | L10: South Africa | M10: South Africa
B11: PHP | C11: =1/INDEX($H$4:$H$64,MATCH(tblXrate[[#This Row],[Currency]],$I$4:$I$64,0)) -> 0.02370505226 | G11: Canadian Dollar | H11: 1.01692 | I11: CAD | L11: Germany | M11: Germany
B12: AED | C12: =1/INDEX($H$4:$H$64,MATCH(tblXrate[[#This Row],[Currency]],$I$4:$I$64,0)) -> 0.2722192127 | G12: Chilean Peso | H12: 497.268 | I12: CLP | L12: UAE | M12: UAE
B13: MXN | C13: =1/INDEX($H$4:$H$64,MATCH(tblXrate[[#This Row],[Currency]],$I$4:$I$64,0)) -> 0.07304655257 | G13: Chinese Yuan | H13: 6.36091 | I13: CNY | L13: Brazil | M13: Brazil
B14: SEK | C14: =1/INDEX($H$4:$H$64,MATCH(tblXrate[[#This Row],[Currency]],$I$4:$I$64,0)) -> 0.1436552504 | G14: Colombian Peso | H14: 1769.79 | I14: COP | L14: Netherlands | M14: Netherlands
B15: BDT | C15: =1/INDEX($H$4:$H$64,MATCH(tblXrate[[#This Row],[Currency]],$I$4:$I$64,0)) -> 0.01222084534 | G15: Croatian Kuna | H15: 5.93671 | I15: HRK | L15: Singapore | M15: Singapore
B16: COSTARICAN | C16: =1/INDEX($H$4:$H$64,MATCH(tblXrate[[#This Row],[Currency]],$I$4:$I$64,0)) -> 0.002007830539 | G16: Danish Krone | H16: 5.85123 | I16: DKK | L16: Philippines | M16: Philippines
B17: ZAR | C17: =1/INDEX($H$4:$H$64,MATCH(tblXrate[[#This Row],[Currency]],$I$4:$I$64,0)) -> 0.1219217799 | G17: Euro | H17: 0.787154 | I17: EUR | L17: Portugal | M17: Portugal
B18: NZD | C18: =1/INDEX($H$4:$H$64,MATCH(tblXrate[[#This Row],[Currency]],$I$4:$I$64,0)) -> 0.7975880936 | G18: Hong Kong Dollar | H18: 7.75889 | I18: HKD | L18: Spain | M18: Spain
B19: CNY | C19: =1/INDEX($H$4:$H$64,MATCH(tblXrate[[#This Row],[Currency]],$I$4:$I$64,0)) -> 0.1572102105 | G19: Hungarian Forint | H19: 225.874 | I19: HUF | L19: New Zealand | M19: New Zealand
B20: EGYPT | C20: =1/INDEX($H$4:$H$64,MATCH(tblXrate[[#This Row],[Currency]],$I$4:$I$64,0)) -> 0.1652619402 | G20: Iceland Krona | H20: 124.697 | I20: ISK | L20: Russia | M20: Russia
B21: NAIRA | C21: =1/INDEX($H$4:$H$64,MATCH(tblXrate[[#This Row],[Currency]],$I$4:$I$64,0)) -> 0.006163328197 | G21: Indian Rupee | H21: 56.1548 | I21: INR | L21: Saudi Arabia | M21: Saudi Arabia
B22: AED | C22: =1/INDEX($H$4:$H$64,MATCH(tblXrate[[#This Row],[Currency]],$I$4:$I$64,0)) -> 0.2722192127 | G22: Indonesian Rupiah | H22: 9443.81 | I22: IDR | L22: Mexico | M22: Mexico
B23: BRL | C23: =1/INDEX($H$4:$H$64,MATCH(tblXrate[[#This Row],[Currency]],$I$4:$I$64,0)) -> 0.4942811669 | G23: Israeli New Shekel | H23: 3.86721 | I23: ILS | L23: Indonesia | M23: Indonesia
B24: RON | C24: =1/INDEX($H$4:$H$64,MATCH(tblXrate[[#This Row],[Currency]],$I$4:$I$64,0)) -> 0.2846132391 | G24: Japanese Yen | H24: 78.9043 | I24: JPY | L24: Norway | M24: Norway
B25: USD | C25: 1 | G25: Kazakhstani Tenge | H25: 148.88 | I25: KZT | L25: malaysia | M25: malaysia
B26: MYR | C26: =1/INDEX($H$4:$H$64,MATCH(tblXrate[[#This Row],[Currency]],$I$4:$I$64,0)) -> 0.3168005677 | G26: Kuwaiti Dinar | H26: 0.2794 | I26: KWD | L26: The Netherlands | M26: Netherlands
B27: LKR | C27: =1/INDEX($H$4:$H$64,MATCH(tblXrate[[#This Row],[Currency]],$I$4:$I$64,0)) -> 0.007524058176 | G27: Latvian Lat | H27: 0.548489 | I27: LVL | L27: Romania | M27: Romania
B28: SGD | C28: =1/INDEX($H$4:$H$64,MATCH(tblXrate[[#This Row],[Currency]],$I$4:$I$64,0)) -> 0.7888239424 | G28: Libyan Dinar | H28: 1.9324 | I28: LYD | L28: Poland | M28: Poland
B29: GBP | C29: =1/INDEX($H$4:$H$64,MATCH(tblXrate[[#This Row],[Currency]],$I$4:$I$64,0)) -> 1.576178272 | G29: Lithuanian Litas | H29: 2.71788 | I29: LTL | L29: italy | M29: italy
B30: DOP | C30: =1/INDEX($H$4:$H$64,MATCH(tblXrate[[#This Row],[Currency]],$I$4:$I$64,0)) -> 0.02567394095 | G30: Malaysian Ringgit | H30: 3.15656 | I30: MYR | L30: Hungary | M30: Hungary
B31: PLN | C31: =1/INDEX($H$4:$H$64,MATCH(tblXrate[[#This Row],[Currency]],$I$4:$I$64,0)) -> 0.3003147298 | G31: Mauritius Rupee | H31: 30.7159 | I31: MUR | L31: Denmark | M31: Denmark
B32: KENYA | C32: =1/INDEX($H$4:$H$64,MATCH(tblXrate[[#This Row],[Currency]],$I$4:$I$64,0)) -> 0.0119760479 | G32: Mexican Peso | H32: 13.6899 | I32: MXN | L32: Ireland | M32: Ireland
B33: DKK | C33: =1/INDEX($H$4:$H$64,MATCH(tblXrate[[#This Row],[Currency]],$I$4:$I$64,0)) -> 0.1709042372 | G33: Nepalese Rupee | H33: 89.65 | I33: NPR | L33: Israel | M33: Israel
B34: IDR | C34: =1/INDEX($H$4:$H$64,MATCH(tblXrate[[#This Row],[Currency]],$I$4:$I$64,0)) -> 0.0001058894662 | G34: New Zealand Dollar | H34: 1.25378 | I34: NZD | L34: France | M34: France
B35: MONGOLIAN | C35: =1/INDEX($H$4:$H$64,MATCH(tblXrate[[#This Row],[Currency]],$I$4:$I$64,0)) -> 0.000756429652 | G35: Norwegian Kroner | H35: 5.90838 | I35: NOK | L35: Colombia | M35: Colombia
B36: JPY | C36: =1/INDEX($H$4:$H$64,MATCH(tblXrate[[#This Row],[Currency]],$I$4:$I$64,0)) -> 0.01267358053 | G36: Omani Rial | H36: 0.3845 | I36: OMR | L36: Switzerland | M36: Switzerland
B37: SAR | C37: =1/INDEX($H$4:$H$64,MATCH(tblXrate[[#This Row],[Currency]],$I$4:$I$64,0)) -> 0.2666666667 | G37: Pakistan Rupee | H37: 94.2144 | I37: PKR | L37: Sri Lanka | M37: Sri Lanka
B38: MAD | C38: =1/INDEX($H$4:$H$64,MATCH(tblXrate[[#This Row],[Currency]],$I$4:$I$64,0)) -> 0.1145475372 | G38: Philippine Peso | H38: 42.1851 | I38: PHP | L38: Belgium | M38: Belgium
B39: MUR | C39: =1/INDEX($H$4:$H$64,MATCH(tblXrate[[#This Row],[Currency]],$I$4:$I$64,0)) -> 0.03255642843 | G39: Qatari Rial | H39: 3.64 | I39: QAR | L39: Dubai | M39: Dubai
B40: NOK | C40: =1/INDEX($H$4:$H$64,MATCH(tblXrate[[#This Row],[Currency]],$I$4:$I$64,0)) -> 0.1692511314 | G40: Romanian Leu | H40: 3.51354 | I40: RON | L40: Ukraine | M40: Ukraine
B41: CHF | C41: =1/INDEX($H$4:$H$64,MATCH(tblXrate[[#This Row],[Currency]],$I$4:$I$64,0)) -> 1.057873062 | G41: Russian Ruble | H41: 32.5458 | I41: RUB | L41: Kuwait | M41: Kuwait
B42: ETB | C42: =1/INDEX($H$4:$H$64,MATCH(tblXrate[[#This Row],[Currency]],$I$4:$I$64,0)) -> 0.05656108597 | G42: Saudi Riyal | H42: 3.75 | I42: SAR | L42: iran | M42: iran
G43: Singapore Dollar | H43: 1.26771 | I43: SGD | L43: Qatar | M43: Qatar
G44: South African Rand | H44: 8.20198 | I44: ZAR | L44: Nigeria | M44: Nigeria
G45: South Korean Won | H45: 1151.09 | I45: KRW | L45: Finland | M45: Finland
G46: Sri Lanka Rupee | H46: 132.907 | I46: LKR | L46: Europe | M46: Europe
G47: Swedish Krona | H47: 6.96111 | I47: SEK | L47: Japan | M47: Japan
G48: Swiss Franc | H48: 0.945293 | I48: CHF | L48: Brasil | M48: Brasil
G49: Taiwan Dollar | H49: 29.8594 | I49: TWD | L49: nz | M49: New Zealand
G50: Thai Baht | H50: 31.5003 | I50: THB | L50: Greece | M50: Greece
G51: Trinidad/Tobago Dollar | H51: 6.39122 | I51: TTD | L51: ksa | M51: USA
G52: Turkish Lira | H52: 1.79447 | I52: TRY | L52: Panama | M52: Panama
G53: Venezuelan Bolivar | H53: 4.29402 | I53: VEF | L53: Turkey | M53: Turkey
G54: UAE Dirham | H54: 3.67351 | I54: AED | L54: Sweden | M54: Sweden
G55: Bangladesh Takha | H55: 81.8274 | I55: BDT | L55: china | M55: china
G56: Costarican CRC | H56: 498.05 | I56: Costarican | L56: Bangladesh | M56: Bangladesh
G57: Egyptian Pound | H57: 6.051 | I57: Egypt | L57: Croatia | M57: Croatia
G58: Nigerian Naira | H58: 162.25 | I58: NAIRA | L58: United Arab Emirates | M58: UAE
G59: Dominican Peso | H59: 38.95 | I59: DOP | L59: MÃ©xico | M59: Mexico
G60: Polish Zloty | H60: 3.32984 | I60: PLN | L60: Zambia | M60: Zambia
G61: Kenyan Shilling | H61: 83.5 | I61: Kenya | L61: Tunisia | M61: Tunisia
G62: Mongolian Tughrik | H62: 1322 | I62: Mongolian | L62: Saudi Arabai | M62: Saudi Arabia
G63: Moroccan Dirham | H63: 8.73 | I63: MAD | L63: Ethiopia | M63: Ethiopia
G64: Ethiopian Birr | H64: 17.68 | I64: ETB | L64: CEE | M64: CEE
L65: SouthAfrica | M65: South Africa
L66: Central America | M66: Central America
L67: Uruguay | M67: Uruguay
L68: Kenya | M68: Kenya
L69: Republica Dominicana | M69: Republica Dominicana
L70: Kingdom of Saudi Arabia | M70: Saudi Arabia
L71: Slovakia | M71: Slovakia
L72: Austria | M72: Austria
L73: Guyana | M73: Guyana
L74: Azerbaijan | M74: Azerbaijan
L75: Bulgaria | M75: Bulgaria
L76: Kuwait | M76: Kuwait
L77: Peru | M77: Peru
L78: Vietnam | M78: Vietnam
L79: Armenia | M79: Armenia
L80: Zimbabwe | M80: Zimbabwe
L81: RSA | M81: South Africa
L82: Libya | M82: Libya
L83: self-employed | M83: self-employed
L84: Lithuania | M84: Lithuania
L85: Somalia | M85: Somalia
L86: Colombia - South America | M86: Colombia
L87: BRA | M87: Brazil
L88: mainland Europe (Euro zone) | M88: Europe
L89: Thailand | M89: Thailand
L90: Continental Europe | M90: CEE
L91: Asia | M91: Asia
L92: Mauritius | M92: Mauritius
L93: Cambodia | M93: Cambodia
L94: Costa Rica | M94: Costa Rica
L95: Viet Nam | M95: Viet Nam
L96: Mongolia | M96: Mongolia
L97: Estonia | M97: Estonia
L98: Montenegro | M98: Montenegro
L99: EU | M99: Europe
L100: Morocco | M100: Morocco
L101: Republic of Georgia | M101: Republic of Georgia
L102: mozambique | M102: mozambique
L103: europe/Croatia | M103: Croatia
L104: Myanmar | M104: Myanmar
L105: Bermuda | M105: Bermuda
L106: Myanmar [Burma] | M106: Myanmar
L107: FR | M107: France
L108: MYS | M108: MYS
L109: Bhutan | M109: Bhutan
L110: Baltic | M110: Baltic
L111: Slovenia | M111: Slovenia
L112: New Zealand | M112: New Zealand
L113: Bolivia | M113: Bolivia
L114: Czech Republic | M114: Czech Republic
L115: Ghana | M115: Ghana
L116: bangkok | M116: Thailand
L117: srilanka | M117: Sri Lanka
L118: NL | M118: Netherlands
L119: Hong Kong | M119: Hong Kong
L120: nld | M120: New Zealand
L121: Aruba | M121: Aruba
L122: DK | M122: Denmark
L123: Iceland | M123: Iceland
L124: Dominican Republic | M124: Dominican Republic
L125: Uganda | M125: Uganda
L126: Oman | M126: Oman
L127: Inonesia | M127: Indonesia
L128: Argentina | M128: Argentina
L129: United Arab Emriate | M129: UAE
L130: Pakistan, Angola | M130: Pakistan
L131: Canad | M131: Canada
L132: Egypt | M132: Egypt
L133: arabian Gulf | M133: arabian Gulf
L134: Paraguay | M134: Paraguay
L135: Latin America | M135: Latin America
L136: Albania | M136: Albania
L137: Lesotho | M137: Lesotho

Sheet Data
B1: Excel Salary Survey Data | G1: 12
B3: Note: Experience data is not available for first few hundred rows.
B5: Unique ID | C5: Timestamp | D5: Your Salary | E5: clean Salary (in local currency) | F5: Currency | G5: Salary in USD | H5: Your Job Title | I5: Job Type | J5: Where do you work | K5: clean Country | L5: How many hours of a day you work on Excel | M5: Years of Experience | N5: Original clean Country
B6: ID0708 | C6: 2012-05-26T14:04:35 | D6: Rs 10000 | E6: 120000 | F6: INR | G6: =Data!$E591*VLOOKUP(Data!$F591,tblXrate[],2,FALSE) -> 3480 | H6: Intern | I6: Analyst | J6: India | K6: =VLOOKUP(Data!$J591,tblCountries[[Actual]:[Mapping]],2,FALSE) -> Pakistan | L6: 1 or 2 hours a day | M6: 0 | N6: India
B7: ID0711 | C7: 2012-05-26T14:14:35 | D7: 400000 | E7: 400000 | F7: INR | G7: =Data!$E594*VLOOKUP(Data!$F594,tblXrate[],2,FALSE) -> 21369.50002 | H7: Consultant | I7: Consultant | J7: India | K7: =VLOOKUP(Data!$J594,tblCountries[[Actual]:[Mapping]],2,FALSE) -> India | L7: 4 to 6 hours a day | M7: 0 | N7: India
B8: ID0816 | C8: 2012-05-26T22:23:38 | D8: 516000 | E8: 516000 | F8: INR | G8: =Data!$E678*VLOOKUP(Data!$F678,tblXrate[],2,FALSE) -> 96891.41736 | H8: Management Trainee | I8: Manager | J8: India | K8: =VLOOKUP(Data!$J678,tblCountries[[Actual]:[Mapping]],2,FALSE) -> Australia | L8: 4 to 6 hours a day | M8: 0 | N8: India
B9: ID0998 | C9: 2012-05-28T09:41:04 | D9: 204000 | E9: 204000 | F9: INR | G9: =Data!$E802*VLOOKUP(Data!$F802,tblXrate[],2,FALSE) -> 20571 | H9: Retired Government Officer, having knowledge in excel. | I9: Manager | J9: India | K9: =VLOOKUP(Data!$J802,tblCountries[[Actual]:[Mapping]],2,FALSE) -> Albania | L9: 4 to 6 hours a day | M9: 0 | N9: India
B10: ID1072 | C10: 2012-05-28T14:56:27 | D10: 15600 | E10: 15600 | F10: GBP | G10: =Data!$E858*VLOOKUP(Data!$F858,tblXrate[],2,FALSE) -> 65000 | H10: business data analyst | I10: Analyst | J10: UK | K10: =VLOOKUP(Data!$J858,tblCountries[[Actual]:[Mapping]],2,FALSE) -> USA | L10: All the 8 hours baby, all the 8! | M10: 0 | N10: UK
B11: ID1454 | C11: 2012-05-30T13:21:06 | D11: 500000 | E11: 500000 | F11: INR | G11: =Data!$E1157*VLOOKUP(Data!$F1157,tblXrate[],2,FALSE) -> 14400 | H11: Project Management | I11: Manager | J11: India | K11: =VLOOKUP(Data!$J1157,tblCountries[[Actual]:[Mapping]],2,FALSE) -> Bulgaria | L11: 2 to 3 hours per day | M11: 0 | N11: India
B12: ID1756 | C12: 2012-06-08T15:43:16 | D12: INR800000 | E12: 800000 | F12: INR | G12: =Data!$E1389*VLOOKUP(Data!$F1389,tblXrate[],2,FALSE) -> 85087 | H12: MANAGER | I12: Manager | J12: India | K12: =VLOOKUP(Data!$J1389,tblCountries[[Actual]:[Mapping]],2,FALSE) -> USA | L12: 2 to 3 hours per day | M12: 0 | N12: India
B13: ID1757 | C13: 2012-06-08T15:45:14 | D13: 800000 | E13: 800000 | F13: INR | G13: =Data!$E1390*VLOOKUP(Data!$F1390,tblXrate[],2,FALSE) -> 50000 | H13: MANAGER | I13: Manager | J13: India | K13: =VLOOKUP(Data!$J1390,tblCountries[[Actual]:[Mapping]],2,FALSE) -> USA | L13: 2 to 3 hours per day | M13: 0 | N13: India
B14: ID1777 | C14: 2012-06-10T04:16:05 | D14: 500000 | E14: 500000 | F14: INR | G14: =Data!$E1406*VLOOKUP(Data!$F1406,tblXrate[],2,FALSE) -> 41301.18397 | H14: equity research trainee | I14: Analyst | J14: India | K14: =VLOOKUP(Data!$J1406,tblCountries[[Actual]:[Mapping]],2,FALSE) -> Canada | L14: All the 8 hours baby, all the 8! | M14: 0 | N14: India
B15: ID1841 | C15: 2012-06-14T04:22:36 | D15: 40000 | E15: 40000 | F15: USD | G15: =Data!$E1462*VLOOKUP(Data!$F1462,tblXrate[],2,FALSE) -> 90000 | H15: Rates Analyst | I15: Analyst | J15: USA | K15: =VLOOKUP(Data!$J1462,tblCountries[[Actual]:[Mapping]],2,FALSE) -> USA | L15: 2 to 3 hours per day | M15: 0 | N15: USA
B16: ID1850 | C16: 2012-06-15T01:10:09 | D16: 37500 | E16: 37500 | F16: USD | G16: =Data!$E1468*VLOOKUP(Data!$F1468,tblXrate[],2,FALSE) -> 58000 | H16: consultant | I16: Consultant | J16: India | K16: =VLOOKUP(Data!$J1468,tblCountries[[Actual]:[Mapping]],2,FALSE) -> Canada | L16: All the 8 hours baby, all the 8! | M16: 0 | N16: India
B17: ID1535 | C17: 2012-05-31T10:54:48 | D17: 1000 | E17: 12000 | F17: USD | G17: =Data!$E1818*VLOOKUP(Data!$F1818,tblXrate[],2,FALSE) -> 26000 | H17: Associate Analyst | I17: Analyst | J17: MYS | K17: Other Countries | L17: 2 to 3 hours per day | M17: 0 | N17: MYS
B18: ID1324 | C18: 2012-05-29T15:49:41 | D18: 314000 | E18: 314000 | F18: INR | G18: =Data!$E1046*VLOOKUP(Data!$F1046,tblXrate[],2,FALSE) -> 95856 | H18: relationship manager | I18: Manager | J18: India | K18: =VLOOKUP(Data!$J1046,tblCountries[[Actual]:[Mapping]],2,FALSE) -> USA | L18: 1 or 2 hours a day | M18: 0.1 | N18: India
B19: ID1832 | C19: 2012-06-13T17:22:47 | D19: 15000 | E19: 15000 | F19: USD | G19: =Data!$E1453*VLOOKUP(Data!$F1453,tblXrate[],2,FALSE) -> 45000 | H19: senior associate | I19: Analyst | J19: India | K19: =VLOOKUP(Data!$J1453,tblCountries[[Actual]:[Mapping]],2,FALSE) -> USA | L19: 2 to 3 hours per day | M19: 0.3 | N19: India
B20: ID1859 | C20: 2012-06-15T15:07:11 | D20: 700 | E20: 8400 | F20: USD | G20: =Data!$E1876*VLOOKUP(Data!$F1876,tblXrate[],2,FALSE) -> 108000 | H20: Analyst | I20: Analyst | J20: Baltic | K20: Other Countries | L20: All the 8 hours baby, all the 8! | M20: 0.3 | N20: Baltic
B21: ID0919 | C21: 2012-05-27T18:33:51 | D21: 300000RS | E21: 300000 | F21: INR | G21: =Data!$E750*VLOOKUP(Data!$F750,tblXrate[],2,FALSE) -> 173384.6416 | H21: ANALYST | I21: Analyst | J21: India | K21: =VLOOKUP(Data!$J750,tblCountries[[Actual]:[Mapping]],2,FALSE) -> Australia | L21: 4 to 6 hours a day | M21: 0.5 | N21: India
B22: ID1326 | C22: 2012-05-29T15:53:14 | D22: 10000 | E22: 10000 | F22: USD | G22: =Data!$E1047*VLOOKUP(Data!$F1047,tblXrate[],2,FALSE) -> 64500 | H22: MIS | I22: Reporting | J22: India | K22: =VLOOKUP(Data!$J1047,tblCountries[[Actual]:[Mapping]],2,FALSE) -> USA | L22: 1 or 2 hours a day | M22: 0.5 | N22: India
B23: ID1378 | C23: 2012-05-29T21:17:26 | D23: 50000 | E23: 50000 | F23: USD | G23: =Data!$E1089*VLOOKUP(Data!$F1089,tblXrate[],2,FALSE) -> 45000 | H23: Engineering Intern | I23: Engineer | J23: USA | K23: =VLOOKUP(Data!$J1089,tblCountries[[Actual]:[Mapping]],2,FALSE) -> India | L23: 4 to 6 hours a day | M23: 0.5 | N23: USA
B24: ID1327 | C24: 2012-05-29T16:07:59 | D24: 9000 | E24: 9000 | F24: USD | G24: =Data!$E1048*VLOOKUP(Data!$F1048,tblXrate[],2,FALSE) -> 77000 | H24: Data Analyst | I24: Analyst | J24: India | K24: =VLOOKUP(Data!$J1048,tblCountries[[Actual]:[Mapping]],2,FALSE) -> USA | L24: All the 8 hours baby, all the 8! | M24: 0.6 | N24: India
B25: ID1172 | C25: 2012-05-28T22:41:15 | D25: 500000 | E25: 500000 | F25: INR | G25: =Data!$E936*VLOOKUP(Data!$F936,tblXrate[],2,FALSE) -> 60000 | H25: Business Analyst | I25: Analyst | J25: India | K25: =VLOOKUP(Data!$J936,tblCountries[[Actual]:[Mapping]],2,FALSE) -> USA | L25: 4 to 6 hours a day | M25: 0.8 | N25: India
B26: ID0564 | C26: 2012-05-26T06:14:13 | D26: 27500 | E26: 27500 | F26: USD | G26: =Data!$E466*VLOOKUP(Data!$F466,tblXrate[],2,FALSE) -> 12465.54168 | H26: Associate | I26: Analyst | J26: USA | K26: =VLOOKUP(Data!$J466,tblCountries[[Actual]:[Mapping]],2,FALSE) -> India | L26: All the 8 hours baby, all the 8! | M26: 1 | N26: USA
B27: ID0626 | C27: 2012-05-26T11:05:45 | D27: 100000 | E27: 100000 | F27: AUD | G27: =Data!$E519*VLOOKUP(Data!$F519,tblXrate[],2,FALSE) -> 81592.77251 | H27: Business Analyst | I27: Analyst | J27: Australia | K27: =VLOOKUP(Data!$J519,tblCountries[[Actual]:[Mapping]],2,FALSE) -> Australia | L27: All the 8 hours baby, all the 8! | M27: 1 | N27: Australia
B28: ID0644 | C28: 2012-05-26T11:47:38 | D28: 25000 INR | E28: 300000 | F28: INR | G28: =Data!$E536*VLOOKUP(Data!$F536,tblXrate[],2,FALSE) -> 21000 | H28: MIS | I28: Reporting | J28: India | K28: =VLOOKUP(Data!$J536,tblCountries[[Actual]:[Mapping]],2,FALSE) -> India | L28: 4 to 6 hours a day | M28: 1 | N28: India
B29: ID0716 | C29: 2012-05-26T14:23:48 | D29: 500000 | E29: 500000 | F29: INR | G29: =Data!$E597*VLOOKUP(Data!$F597,tblXrate[],2,FALSE) -> 7265 | H29: mis | I29: Reporting | J29: India | K29: =VLOOKUP(Data!$J597,tblCountries[[Actual]:[Mapping]],2,FALSE) -> India | L29: 2 to 3 hours per day | M29: 1 | N29: India
B30: ID0728 | C30: 2012-05-26T15:04:33 | D30: INR 390000 PA | E30: 390000 | F30: INR | G30: =Data!$E607*VLOOKUP(Data!$F607,tblXrate[],2,FALSE) -> 5342.375006 | H30: Business Analyst | I30: Analyst | J30: India | K30: =VLOOKUP(Data!$J607,tblCountries[[Actual]:[Mapping]],2,FALSE) -> India | L30: 4 to 6 hours a day | M30: 1 | N30: India
B31: ID0762 | C31: 2012-05-26T17:06:48 | D31: 2000 | E31: 24000 | F31: USD | G31: =Data!$E634*VLOOKUP(Data!$F634,tblXrate[],2,FALSE) -> 28995 | H31: Asst Production Planner | I31: Analyst | J31: India | K31: =VLOOKUP(Data!$J634,tblCountries[[Actual]:[Mapping]],2,FALSE) -> India | L31: 2 to 3 hours per day | M31: 1 | N31: India
B32: ID0786 | C32: 2012-05-26T19:29:34 | D32: 16000 | E32: 16000 | F32: USD | G32: =Data!$E652*VLOOKUP(Data!$F652,tblXrate[],2,FALSE) -> 39000 | H32: Mis executiv | I32: Reporting | J32: India | K32: =VLOOKUP(Data!$J652,tblCountries[[Actual]:[Mapping]],2,FALSE) -> South Africa | L32: All the 8 hours baby, all the 8! | M32: 1 | N32: India
B33: ID0818 | C33: 2012-05-26T22:29:21 | D33: 144000 | E33: 144000 | F33: INR | G33: =Data!$E680*VLOOKUP(Data!$F680,tblXrate[],2,FALSE) -> 8903.958344 | H33: BPO information process enabler | I33: Analyst | J33: India | K33: =VLOOKUP(Data!$J680,tblCountries[[Actual]:[Mapping]],2,FALSE) -> India | L33: All the 8 hours baby, all the 8! | M33: 1 | N33: India
B34: ID0832 | C34: 2012-05-26T23:14:58 | D34: 5.5 lakhs | E34: 550000 | F34: INR | G34: =Data!$E690*VLOOKUP(Data!$F690,tblXrate[],2,FALSE) -> 45000 | H34: web analyst | I34: Analyst | J34: India | K34: =VLOOKUP(Data!$J690,tblCountries[[Actual]:[Mapping]],2,FALSE) -> USA | L34: 4 to 6 hours a day | M34: 1 | N34: India
B35: ID0840 | C35: 2012-05-27T00:02:45 | D35: 85000 | E35: 85000 | F35: USD | G35: =Data!$E696*VLOOKUP(Data!$F696,tblXrate[],2,FALSE) -> 95000 | H35: actuary | I35: Accountant | J35: USA | K35: =VLOOKUP(Data!$J696,tblCountries[[Actual]:[Mapping]],2,FALSE) -> USA | L35: All the 8 hours baby, all the 8! | M35: 1 | N35: USA
B36: ID0846 | C36: 2012-05-27T00:53:20 | D36: 2 lac | E36: 200000 | F36: INR | G36: =Data!$E700*VLOOKUP(Data!$F700,tblXrate[],2,FALSE) -> 8547.80001 | H36: Bio-Statiscian | I36: Reporting | J36: India | K36: =VLOOKUP(Data!$J700,tblCountries[[Actual]:[Mapping]],2,FALSE) -> India | L36: 4 to 6 hours a day | M36: 1 | N36: India
B37: ID0847 | C37: 2012-05-27T01:04:46 | D37: 5000 | E37: 5000 | F37: USD | G37: =Data!$E701*VLOOKUP(Data!$F701,tblXrate[],2,FALSE) -> 17807.91669 | H37: Management Intern | I37: Manager | J37: India | K37: =VLOOKUP(Data!$J701,tblCountries[[Actual]:[Mapping]],2,FALSE) -> India | L37: 4 to 6 hours a day | M37: 1 | N37: India
B38: ID0855 | C38: 2012-05-27T03:16:05 | D38: Rs. 550000 | E38: 550000 | F38: INR | G38: =Data!$E707*VLOOKUP(Data!$F707,tblXrate[],2,FALSE) -> 12000 | H38: Analyst | I38: Analyst | J38: India | K38: =VLOOKUP(Data!$J707,tblCountries[[Actual]:[Mapping]],2,FALSE) -> India | L38: 4 to 6 hours a day | M38: 1 | N38: India
B39: ID0856 | C39: 2012-05-27T03:19:29 | D39: 32000 | E39: 32000 | F39: USD | G39: =Data!$E708*VLOOKUP(Data!$F708,tblXrate[],2,FALSE) -> 49153.11941 | H39: Reporting Manager | I39: Manager | J39: USA | K39: =VLOOKUP(Data!$J708,tblCountries[[Actual]:[Mapping]],2,FALSE) -> UK | L39: 4 to 6 hours a day | M39: 1 | N39: USA
B40: ID0879 | C40: 2012-05-27T12:03:51 | D40: 144000 | E40: 144000 | F40: INR | G40: =Data!$E722*VLOOKUP(Data!$F722,tblXrate[],2,FALSE) -> 53356.77644 | H40: Cost Trainee | I40: Analyst | J40: India | K40: =VLOOKUP(Data!$J722,tblCountries[[Actual]:[Mapping]],2,FALSE) -> Germany | L40: 4 to 6 hours a day | M40: 1 | N40: India
B41: ID0888 | C41: 2012-05-27T13:34:12 | D41: 43000 | E41: 43000 | F41: USD | G41: =Data!$E728*VLOOKUP(Data!$F728,tblXrate[],2,FALSE) -> 40414 | H41: Financial Analyst | I41: Analyst | J41: USA | K41: =VLOOKUP(Data!$J728,tblCountries[[Actual]:[Mapping]],2,FALSE) -> USA | L41: 4 to 6 hours a day | M41: 1 | N41: USA
B42: ID0937 | C42: 2012-05-27T23:10:01 | D42: Rs.7,00,000 | E42: 700000 | F42: INR | G42: =Data!$E761*VLOOKUP(Data!$F761,tblXrate[],2,FALSE) -> 19000 | H42: Business Analyst | I42: Analyst | J42: India | K42: =VLOOKUP(Data!$J761,tblCountries[[Actual]:[Mapping]],2,FALSE) -> UK | L42: All the 8 hours baby, all the 8! | M42: 1 | N42: India
B43: ID0971 | C43: 2012-05-28T06:52:05 | D43: 43000 | E43: 43000 | F43: AUD | G43: =Data!$E780*VLOOKUP(Data!$F780,tblXrate[],2,FALSE) -> 40000 | H43: Finance Officer | I43: Manager | J43: Australia | K43: =VLOOKUP(Data!$J780,tblCountries[[Actual]:[Mapping]],2,FALSE) -> USA | L43: All the 8 hours baby, all the 8! | M43: 1 | N43: Australia
B44: ID1010 | C44: 2012-05-28T11:11:53 | D44: 650000 | E44: 650000 | F44: INR | G44: =Data!$E812*VLOOKUP(Data!$F812,tblXrate[],2,FALSE) -> 30500 | H44: Ass Research Manager | I44: Manager | J44: India | K44: =VLOOKUP(Data!$J812,tblCountries[[Actual]:[Mapping]],2,FALSE) -> Brazil | L44: 2 to 3 hours per day | M44: 1 | N44: India
B45: ID1069 | C45: 2012-05-28T14:52:45 | D45: Rs. 25000 | E45: 300000 | F45: INR | G45: =Data!$E855*VLOOKUP(Data!$F855,tblXrate[],2,FALSE) -> 12821.70001 | H45: Professional consultant-Finance | I45: Consultant | J45: India | K45: =VLOOKUP(Data!$J855,tblCountries[[Actual]:[Mapping]],2,FALSE) -> India | L45: 2 to 3 hours per day | M45: 1 | N45: India
B46: ID1083 | C46: 2012-05-28T15:35:32 | D46: 20000 | E46: 20000 | F46: GBP | G46: =Data!$E868*VLOOKUP(Data!$F868,tblXrate[],2,FALSE) -> 126094.2618 | H46: finance assistant | I46: Analyst | J46: UK | K46: =VLOOKUP(Data!$J868,tblCountries[[Actual]:[Mapping]],2,FALSE) -> UK | L46: 4 to 6 hours a day | M46: 1 | N46: UK
B47: ID1086 | C47: 2012-05-28T15:44:12 | D47: Â£63000 | E47: 63000 | F47: GBP | G47: =Data!$E871*VLOOKUP(Data!$F871,tblXrate[],2,FALSE) -> 57167.97475 | H47: Business Improvement Specialist | I47: Specialist | J47: UK | K47: =VLOOKUP(Data!$J871,tblCountries[[Actual]:[Mapping]],2,FALSE) -> Netherlands | L47: 2 to 3 hours per day | M47: 1 | N47: UK
B48: ID1125 | C48: 2012-05-28T17:38:46 | D48: 210000 | E48: 210000 | F48: INR | G48: =Data!$E904*VLOOKUP(Data!$F904,tblXrate[],2,FALSE) -> 120000 | H48: information Analyst | I48: Analyst | J48: India | K48: =VLOOKUP(Data!$J904,tblCountries[[Actual]:[Mapping]],2,FALSE) -> USA | L48: All the 8 hours baby, all the 8! | M48: 1 | N48: India
B49: ID1183 | C49: 2012-05-28T22:53:03 | D49: 27840 | E49: 27840 | F49: USD | G49: =Data!$E945*VLOOKUP(Data!$F945,tblXrate[],2,FALSE) -> 60000 | H49: Data Entry Clerk III | I49: Analyst | J49: USA | K49: =VLOOKUP(Data!$J945,tblCountries[[Actual]:[Mapping]],2,FALSE) -> Russia | L49: 2 to 3 hours per day | M49: 1 | N49: USA
B50: ID1207 | C50: 2012-05-29T00:07:00 | D50: 250000 | E50: 250000 | F50: INR | G50: =Data!$E962*VLOOKUP(Data!$F962,tblXrate[],2,FALSE) -> 36000 | H50: Officer Production | I50: Manager | J50: India | K50: =VLOOKUP(Data!$J962,tblCountries[[Actual]:[Mapping]],2,FALSE) -> Kuwait | L50: 4 to 6 hours a day | M50: 1 | N50: India
B51: ID1229 | C51: 2012-05-29T01:47:39 | D51: 750 | E51: 9000 | F51: USD | G51: =Data!$E978*VLOOKUP(Data!$F978,tblXrate[],2,FALSE) -> 10684.75001 | H51: assurance manager | I51: Manager | J51: India | K51: =VLOOKUP(Data!$J978,tblCountries[[Actual]:[Mapping]],2,FALSE) -> India | L51: 4 to 6 hours a day | M51: 1 | N51: India
B52: ID1234 | C52: 2012-05-29T02:22:13 | D52: 400000 | E52: 400000 | F52: INR | G52: =Data!$E983*VLOOKUP(Data!$F983,tblXrate[],2,FALSE) -> 10000 | H52: Pmo | I52: Manager | J52: India | K52: =VLOOKUP(Data!$J983,tblCountries[[Actual]:[Mapping]],2,FALSE) -> India | L52: 4 to 6 hours a day | M52: 1 | N52: India
B53: ID1244 | C53: 2012-05-29T04:25:02 | D53: 56000 | E53: 56000 | F53: USD | G53: =Data!$E990*VLOOKUP(Data!$F990,tblXrate[],2,FALSE) -> 60000 | H53: Accountant | I53: Accountant | J53: USA | K53: =VLOOKUP(Data!$J990,tblCountries[[Actual]:[Mapping]],2,FALSE) -> USA | L53: 4 to 6 hours a day | M53: 1 | N53: USA
B54: ID1252 | C54: 2012-05-29T05:53:42 | D54: Â£25750 | E54: 25750 | F54: GBP | G54: =Data!$E995*VLOOKUP(Data!$F995,tblXrate[],2,FALSE) -> 10000 | H54: Energy Analyst | I54: Analyst | J54: UK | K54: =VLOOKUP(Data!$J995,tblCountries[[Actual]:[Mapping]],2,FALSE) -> India | L54: 4 to 6 hours a day | M54: 1 | N54: UK
B55: ID1257 | C55: 2012-05-29T07:28:41 | D55: 20000 | E55: 20000 | F55: GBP | G55: =Data!$E999*VLOOKUP(Data!$F999,tblXrate[],2,FALSE) -> 78808.9136 | H55: Environmental Information Analyst | I55: Analyst | J55: UK | K55: =VLOOKUP(Data!$J999,tblCountries[[Actual]:[Mapping]],2,FALSE) -> UK | L55: 4 to 6 hours a day | M55: 1 | N55: UK
B56: ID1297 | C56: 2012-05-29T13:16:45 | D56: 1000 | E56: 12000 | F56: USD | G56: =Data!$E1028*VLOOKUP(Data!$F1028,tblXrate[],2,FALSE) -> 18060 | H56: excel prof | I56: Consultant | J56: pakistan | K56: =VLOOKUP(Data!$J1028,tblCountries[[Actual]:[Mapping]],2,FALSE) -> Philippines | L56: 4 to 6 hours a day | M56: 1 | N56: Pakistan
B57: ID1328 | C57: 2012-05-29T16:08:40 | D57: 9000 | E57: 9000 | F57: USD | G57: =Data!$E1049*VLOOKUP(Data!$F1049,tblXrate[],2,FALSE) -> 17807.91669 | H57: Data Analyst | I57: Analyst | J57: India | K57: =VLOOKUP(Data!$J1049,tblCountries[[Actual]:[Mapping]],2,FALSE) -> India | L57: 4 to 6 hours a day | M57: 1 | N57: India
B58: ID1362 | C58: 2012-05-29T19:10:05 | D58: 27,000.GBP 42,353 USD | E58: 27000 | F58: GBP | G58: =Data!$E1075*VLOOKUP(Data!$F1075,tblXrate[],2,FALSE) -> 98000 | H58: Engineering Tech | I58: Engineer | J58: UK | K58: =VLOOKUP(Data!$J1075,tblCountries[[Actual]:[Mapping]],2,FALSE) -> Indonesia | L58: 4 to 6 hours a day | M58: 1 | N58: UK
B59: ID1374 | C59: 2012-05-29T20:20:21 | D59: $100,000 US | E59: 100000 | F59: USD | G59: =Data!$E1085*VLOOKUP(Data!$F1085,tblXrate[],2,FALSE) -> 105000 | H59: Senior Financial Analyst | I59: Analyst | J59: USA | K59: =VLOOKUP(Data!$J1085,tblCountries[[Actual]:[Mapping]],2,FALSE) -> USA | L59: 4 to 6 hours a day | M59: 1 | N59: USA
B60: ID1408 | C60: 2012-05-29T23:13:32 | D60: 55000 | E60: 55000 | F60: USD | G60: =Data!$E1116*VLOOKUP(Data!$F1116,tblXrate[],2,FALSE) -> 4451.979172 | H60: Risk Analyst | I60: Analyst | J60: USA | K60: =VLOOKUP(Data!$J1116,tblCountries[[Actual]:[Mapping]],2,FALSE) -> India | L60: All the 8 hours baby, all the 8! | M60: 1 | N60: USA
B61: ID1409 | C61: 2012-05-29T23:20:41 | D61: 40000 | E61: 40000 | F61: USD | G61: =Data!$E1117*VLOOKUP(Data!$F1117,tblXrate[],2,FALSE) -> 44000 | H61: Project Coordinator | I61: Manager | J61: USA | K61: =VLOOKUP(Data!$J1117,tblCountries[[Actual]:[Mapping]],2,FALSE) -> USA | L61: 4 to 6 hours a day | M61: 1 | N61: USA
B62: ID1423 | C62: 2012-05-30T01:12:35 | D62: INR 750000 | E62: 750000 | F62: INR | G62: =Data!$E1129*VLOOKUP(Data!$F1129,tblXrate[],2,FALSE) -> 4273.900005 | H62: Associate - Indirect Tax | I62: CXO or Top Mgmt. | J62: India | K62: =VLOOKUP(Data!$J1129,tblCountries[[Actual]:[Mapping]],2,FALSE) -> India | L62: 1 or 2 hours a day | M62: 1 | N62: India
B63: ID1569 | C63: 2012-06-01T01:29:02 | D63: 46325 | E63: 46325 | F63: USD | G63: =Data!$E1244*VLOOKUP(Data!$F1244,tblXrate[],2,FALSE) -> 32311.65458 | H63: Work Force Scheduler for Call Center | I63: Controller | J63: USA | K63: =VLOOKUP(Data!$J1244,tblCountries[[Actual]:[Mapping]],2,FALSE) -> UK | L63: 4 to 6 hours a day | M63: 1 | N63: USA
B64: ID1606 | C64: 2012-06-01T22:20:26 | D64: 20000 $ | E64: 20000 | F64: USD | G64: =Data!$E1272*VLOOKUP(Data!$F1272,tblXrate[],2,FALSE) -> 86689.80496 | H64: Manager | I64: Manager | J64: India | K64: =VLOOKUP(Data!$J1272,tblCountries[[Actual]:[Mapping]],2,FALSE) -> UK | L64: 4 to 6 hours a day | M64: 1 | N64: India
B65: ID1611 | C65: 2012-06-02T02:28:30 | D65: 38000 | E65: 38000 | F65: USD | G65: =Data!$E1276*VLOOKUP(Data!$F1276,tblXrate[],2,FALSE) -> 127500 | H65: Business Analyst | I65: Analyst | J65: USA | K65: =VLOOKUP(Data!$J1276,tblCountries[[Actual]:[Mapping]],2,FALSE) -> USA | L65: All the 8 hours baby, all the 8! | M65: 1 | N65: USA
B66: ID1612 | C66: 2012-06-02T03:08:50 | D66: 1800000 | E66: 1800000 | F66: INR | G66: =Data!$E1277*VLOOKUP(Data!$F1277,tblXrate[],2,FALSE) -> 21000 | H66: analyst | I66: Analyst | J66: India | K66: =VLOOKUP(Data!$J1277,tblCountries[[Actual]:[Mapping]],2,FALSE) -> India | L66: All the 8 hours baby, all the 8! | M66: 1 | N66: India
B67: ID1615 | C67: 2012-06-02T03:29:19 | D67: Â£21500Uk | E67: 21500 | F67: GBP | G67: =Data!$E1280*VLOOKUP(Data!$F1280,tblXrate[],2,FALSE) -> 66199.48743 | H67: Data Analyst | I67: Analyst | J67: UK | K67: =VLOOKUP(Data!$J1280,tblCountries[[Actual]:[Mapping]],2,FALSE) -> UK | L67: All the 8 hours baby, all the 8! | M67: 1 | N67: UK
B68: ID1616 | C68: 2012-06-02T04:49:42 | D68: 60000 | E68: 60000 | F68: USD | G68: =Data!$E1281*VLOOKUP(Data!$F1281,tblXrate[],2,FALSE) -> 63807.04749 | H68: Data Analyst | I68: Analyst | J68: USA | K68: =VLOOKUP(Data!$J1281,tblCountries[[Actual]:[Mapping]],2,FALSE) -> New Zealand | L68: 2 to 3 hours per day | M68: 1 | N68: USA
B69: ID1625 | C69: 2012-06-02T18:47:32 | D69: 7000 | E69: 7000 | F69: USD | G69: =Data!$E1288*VLOOKUP(Data!$F1288,tblXrate[],2,FALSE) -> 17807.91669 | H69: M.I.S | I69: Reporting | J69: India | K69: =VLOOKUP(Data!$J1288,tblCountries[[Actual]:[Mapping]],2,FALSE) -> India | L69: 4 to 6 hours a day | M69: 1 | N69: India
B70: ID1630 | C70: 2012-06-02T22:33:32 | D70: 55000 | E70: 55000 | F70: USD | G70: =Data!$E1293*VLOOKUP(Data!$F1293,tblXrate[],2,FALSE) -> 50846 | H70: Supply Chain Analyst | I70: Analyst | J70: USA | K70: =VLOOKUP(Data!$J1293,tblCountries[[Actual]:[Mapping]],2,FALSE) -> USA | L70: 4 to 6 hours a day | M70: 1 | N70: USA
B71: ID1653 | C71: 2012-06-04T02:30:11 | D71: 10000 | E71: 10000 | F71: USD | G71: =Data!$E1308*VLOOKUP(Data!$F1308,tblXrate[],2,FALSE) -> 8400 | H71: ceo | I71: CXO or Top Mgmt. | J71: India | K71: =VLOOKUP(Data!$J1308,tblCountries[[Actual]:[Mapping]],2,FALSE) -> India | L71: All the 8 hours baby, all the 8! | M71: 1 | N71: India
B72: ID1666 | C72: 2012-06-04T21:43:15 | D72: 56000 | E72: 56000 | F72: CAD | G72: =Data!$E1320*VLOOKUP(Data!$F1320,tblXrate[],2,FALSE) -> 53000 | H72: consultant | I72: Consultant | J72: Canada | K72: =VLOOKUP(Data!$J1320,tblCountries[[Actual]:[Mapping]],2,FALSE) -> USA | L72: All the 8 hours baby, all the 8! | M72: 1 | N72: Canada
B73: ID1680 | C73: 2012-06-05T05:03:04 | D73: 1000 | E73: 12000 | F73: USD | G73: =Data!$E1328*VLOOKUP(Data!$F1328,tblXrate[],2,FALSE) -> 150000 | H73: Waiter | I73: Analyst | J73: USA | K73: =VLOOKUP(Data!$J1328,tblCountries[[Actual]:[Mapping]],2,FALSE) -> USA | L73: 2 to 3 hours per day | M73: 1 | N73: USA
B74: ID1705 | C74: 2012-06-06T02:11:58 | D74: US$60000 | E74: 60000 | F74: USD | G74: =Data!$E1345*VLOOKUP(Data!$F1345,tblXrate[],2,FALSE) -> 12227.4302 | H74: Analyst | I74: Analyst | J74: USA | K74: =VLOOKUP(Data!$J1345,tblCountries[[Actual]:[Mapping]],2,FALSE) -> Pakistan | L74: All the 8 hours baby, all the 8! | M74: 1 | N74: USA
B75: ID1712 | C75: 2012-06-06T08:25:56 | D75: 42000 | E75: 42000 | F75: USD | G75: =Data!$E1351*VLOOKUP(Data!$F1351,tblXrate[],2,FALSE) -> 50000 | H75: Staff Accountant | I75: Accountant | J75: USA | K75: =VLOOKUP(Data!$J1351,tblCountries[[Actual]:[Mapping]],2,FALSE) -> India | L75: 4 to 6 hours a day | M75: 1 | N75: USA
B76: ID1747 | C76: 2012-06-08T03:34:51 | D76: 30000 | E76: 30000 | F76: USD | G76: =Data!$E1381*VLOOKUP(Data!$F1381,tblXrate[],2,FALSE) -> 28371.2089 | H76: Inventory Manager | I76: Manager | J76: USA | K76: =VLOOKUP(Data!$J1381,tblCountries[[Actual]:[Mapping]],2,FALSE) -> UK | L76: 4 to 6 hours a day | M76: 1 | N76: USA
B77: ID1749 | C77: 2012-06-08T06:42:32 | D77: 75000 | E77: 75000 | F77: USD | G77: =Data!$E1383*VLOOKUP(Data!$F1383,tblXrate[],2,FALSE) -> 41000 | H77: actuary | I77: Accountant | J77: USA | K77: =VLOOKUP(Data!$J1383,tblCountries[[Actual]:[Mapping]],2,FALSE) -> USA | L77: All the 8 hours baby, all the 8! | M77: 1 | N77: USA
B78: ID1785 | C78: 2012-06-11T03:11:39 | D78: 150000 | E78: 150000 | F78: INR | G78: =Data!$E1412*VLOOKUP(Data!$F1412,tblXrate[],2,FALSE) -> 24000 | H78: ENGINEER | I78: Engineer | J78: India | K78: =VLOOKUP(Data!$J1412,tblCountries[[Actual]:[Mapping]],2,FALSE) -> USA | L78: 2 to 3 hours per day | M78: 1 | N78: India
B79: ID1790 | C79: 2012-06-11T17:01:58 | D79: Rs 480000 | E79: 480000 | F79: INR | G79: =Data!$E1417*VLOOKUP(Data!$F1417,tblXrate[],2,FALSE) -> 80000 | H79: Development Analyst | I79: Analyst | J79: India | K79: =VLOOKUP(Data!$J1417,tblCountries[[Actual]:[Mapping]],2,FALSE) -> USA | L79: 4 to 6 hours a day | M79: 1 | N79: India
B80: ID1795 | C80: 2012-06-11T21:29:29 | D80: 300 | E80: 3600 | F80: USD | G80: =Data!$E1421*VLOOKUP(Data!$F1421,tblXrate[],2,FALSE) -> 57400 | H80: Analyst | I80: Analyst | J80: India | K80: =VLOOKUP(Data!$J1421,tblCountries[[Actual]:[Mapping]],2,FALSE) -> USA | L80: 4 to 6 hours a day | M80: 1 | N80: India
B81: ID1800 | C81: 2012-06-12T01:55:12 | D81: 40000 | E81: 40000 | F81: CAD | G81: =Data!$E1424*VLOOKUP(Data!$F1424,tblXrate[],2,FALSE) -> 50000 | H81: Machine Scheduler | I81: Analyst | J81: Canada | K81: =VLOOKUP(Data!$J1424,tblCountries[[Actual]:[Mapping]],2,FALSE) -> USA | L81: 1 or 2 hours a day | M81: 1 | N81: Canada
B82: ID1814 | C82: 2012-06-12T18:28:39 | D82: 32000 | E82: 32000 | F82: GBP | G82: =Data!$E1438*VLOOKUP(Data!$F1438,tblXrate[],2,FALSE) -> 12000 | H82: Financial Analyst | I82: Analyst | J82: UK | K82: =VLOOKUP(Data!$J1438,tblCountries[[Actual]:[Mapping]],2,FALSE) -> Pakistan | L82: All the 8 hours baby, all the 8! | M82: 1 | N82: UK
B83: ID1851 | C83: 2012-06-15T02:24:44 | D83: 40000 | E83: 40000 | F83: USD | G83: =Data!$E1469*VLOOKUP(Data!$F1469,tblXrate[],2,FALSE) -> 55000 | H83: Research Support Specialist | I83: Specialist | J83: USA | K83: =VLOOKUP(Data!$J1469,tblCountries[[Actual]:[Mapping]],2,FALSE) -> USA | L83: 4 to 6 hours a day | M83: 1 | N83: USA
B84: ID1855 | C84: 2012-06-15T05:44:30 | D84: 29000 | E84: 29000 | F84: USD | G84: =Data!$E1472*VLOOKUP(Data!$F1472,tblXrate[],2,FALSE) -> 105219.683 | H84: Customer Experence Engineer | I84: Engineer | J84: USA | K84: =VLOOKUP(Data!$J1472,tblCountries[[Actual]:[Mapping]],2,FALSE) -> Canada | L84: All the 8 hours baby, all the 8! | M84: 1 | N84: USA
B85: ID1857 | C85: 2012-06-15T09:00:08 | D85: 48000 | E85: 48000 | F85: USD | G85: =Data!$E1473*VLOOKUP(Data!$F1473,tblXrate[],2,FALSE) -> 22880 | H85: Accountant | I85: Accountant | J85: USA | K85: =VLOOKUP(Data!$J1473,tblCountries[[Actual]:[Mapping]],2,FALSE) -> USA | L85: 4 to 6 hours a day | M85: 1 | N85: USA
B86: ID1858 | C86: 2012-06-15T09:01:23 | D86: 48000 | E86: 48000 | F86: USD | G86: =Data!$E1474*VLOOKUP(Data!$F1474,tblXrate[],2,FALSE) -> 80000 | H86: Accountant | I86: Accountant | J86: USA | K86: =VLOOKUP(Data!$J1474,tblCountries[[Actual]:[Mapping]],2,FALSE) -> USA | L86: 4 to 6 hours a day | M86: 1 | N86: USA
B87: ID1875 | C87: 2012-06-16T08:10:59 | D87: 63000 USD | E87: 63000 | F87: USD | G87: =Data!$E1487*VLOOKUP(Data!$F1487,tblXrate[],2,FALSE) -> 41406 | H87: Financial Analyst | I87: Analyst | J87: USA | K87: =VLOOKUP(Data!$J1487,tblCountries[[Actual]:[Mapping]],2,FALSE) -> Canada | L87: All the 8 hours baby, all the 8! | M87: 1 | N87: USA
B88: ID1891 | C88: 2012-06-18T06:14:35 | D88: 46000 | E88: 46000 | F88: USD | G88: =Data!$E1499*VLOOKUP(Data!$F1499,tblXrate[],2,FALSE) -> 67000 | H88: AML Analyst | I88: Analyst | J88: USA | K88: =VLOOKUP(Data!$J1499,tblCountries[[Actual]:[Mapping]],2,FALSE) -> USA | L88: All the 8 hours baby, all the 8! | M88: 1 | N88: USA
B89: ID1911 | C89: 2012-06-19T21:32:36 | D89: 48000 | E89: 48000 | F89: USD | G89: =Data!$E1517*VLOOKUP(Data!$F1517,tblXrate[],2,FALSE) -> 80000 | H89: Marketing Analyst Co-op | I89: Analyst | J89: USA | K89: =VLOOKUP(Data!$J1517,tblCountries[[Actual]:[Mapping]],2,FALSE) -> USA | L89: 4 to 6 hours a day | M89: 1 | N89: USA
B90: ID0648 | C90: 2012-05-26T11:58:23 | D90: 8000 | E90: 8000 | F90: USD | G90: =Data!$E1632*VLOOKUP(Data!$F1632,tblXrate[],2,FALSE) -> 6588.929174 | H90: Quality officer | I90: Manager | J90: bangkok | K90: Other Countries | L90: All the 8 hours baby, all the 8! | M90: 1 | N90: Thailand
B91: ID0673 | C91: 2012-05-26T12:54:36 | D91: 15000 | E91: 15000 | F91: USD | G91: =Data!$E1635*VLOOKUP(Data!$F1635,tblXrate[],2,FALSE) -> 56000 | H91: TA | I91: Analyst | J91: Indonesia | K91: Other Countries | L91: 4 to 6 hours a day | M91: 1 | N91: Indonesia
B92: ID1510 | C92: 2012-05-31T01:09:06 | D92: US$ 10000 | E92: 10000 | F92: USD | G92: =Data!$E1815*VLOOKUP(Data!$F1815,tblXrate[],2,FALSE) -> 100000 | H92: Trainee | I92: Analyst | J92: Brazil | K92: Other Countries | L92: 4 to 6 hours a day | M92: 1 | N92: Brazil
B93: ID1831 | C93: 2012-06-13T11:58:30 | D93: 20000 | E93: 20000 | F93: USD | G93: =Data!$E1871*VLOOKUP(Data!$F1871,tblXrate[],2,FALSE) -> 5250 | H93: Personal Assistant | I93: Analyst | J93: Hong Kong | K93: Other Countries | L93: 1 or 2 hours a day | M93: 1 | N93: Hong Kong
B94: ID1853 | C94: 2012-06-15T03:00:04 | D94: 30000 | E94: 30000 | F94: USD | G94: =Data!$E1875*VLOOKUP(Data!$F1875,tblXrate[],2,FALSE) -> 131675.5223 | H94: Trainee | I94: Analyst | J94: Brazil | K94: Other Countries | L94: 2 to 3 hours per day | M94: 1 | N94: Brazil
B95: ID0826 | C95: 2012-05-26T23:02:00 | D95: INR 1700000 | E95: 1700000 | F95: INR | G95: =Data!$E685*VLOOKUP(Data!$F685,tblXrate[],2,FALSE) -> 7960 | H95: Operations Lead | I95: Manager | J95: India | K95: =VLOOKUP(Data!$J685,tblCountries[[Actual]:[Mapping]],2,FALSE) -> India | L95: All the 8 hours baby, all the 8! | M95: 1.1 | N95: India
B96: ID0640 | C96: 2012-05-26T11:40:34 | D96: 4000000 INR | E96: 4000000 | F96: INR | G96: =Data!$E532*VLOOKUP(Data!$F532,tblXrate[],2,FALSE) -> 45000 | H96: Senior Executive | I96: Manager | J96: India | K96: =VLOOKUP(Data!$J532,tblCountries[[Actual]:[Mapping]],2,FALSE) -> USA | L96: 4 to 6 hours a day | M96: 1.5 | N96: India
B97: ID0747 | C97: 2012-05-26T16:12:09 | D97: GBP21798 | E97: 21798 | F97: GBP | G97: =Data!$E622*VLOOKUP(Data!$F622,tblXrate[],2,FALSE) -> 145000 | H97: Data Analyst | I97: Analyst | J97: UK | K97: =VLOOKUP(Data!$J622,tblCountries[[Actual]:[Mapping]],2,FALSE) -> USA | L97: All the 8 hours baby, all the 8! | M97: 1.5 | N97: UK
B98: ID0792 | C98: 2012-05-26T20:20:34 | D98: Rs 450000 | E98: 450000 | F98: INR | G98: =Data!$E658*VLOOKUP(Data!$F658,tblXrate[],2,FALSE) -> 100000 | H98: Material Planner | I98: Manager | J98: India | K98: =VLOOKUP(Data!$J658,tblCountries[[Actual]:[Mapping]],2,FALSE) -> Russia | L98: All the 8 hours baby, all the 8! | M98: 1.5 | N98: India
B99: ID0972 | C99: 2012-05-28T06:52:05 | D99: 45616 | E99: 45616 | F99: USD | G99: =Data!$E781*VLOOKUP(Data!$F781,tblXrate[],2,FALSE) -> 15000 | H99: Assistant Fleet Analyst | I99: Analyst | J99: Australia | K99: =VLOOKUP(Data!$J781,tblCountries[[Actual]:[Mapping]],2,FALSE) -> USA | L99: 4 to 6 hours a day | M99: 1.5 | N99: Australia
B100: ID1184 | C100: 2012-05-28T22:54:24 | D100: Rs. 350000 | E100: 350000 | F100: INR | G100: =Data!$E946*VLOOKUP(Data!$F946,tblXrate[],2,FALSE) -> 19055.99158 | H100: officer accounts | I100: Accountant | J100: India | K100: =VLOOKUP(Data!$J946,tblCountries[[Actual]:[Mapping]],2,FALSE) -> Spain | L100: 2 to 3 hours per day | M100: 1.5 | N100: India
B101: ID1204 | C101: 2012-05-29T00:00:21 | D101: 61000 | E101: 61000 | F101: USD | G101: =Data!$E959*VLOOKUP(Data!$F959,tblXrate[],2,FALSE) -> 72000 | H101: Financial Analyst | I101: Analyst | J101: USA | K101: =VLOOKUP(Data!$J959,tblCountries[[Actual]:[Mapping]],2,FALSE) -> New Zealand | L101: 4 to 6 hours a day | M101: 1.5 | N101: USA
B102: ID1301 | C102: 2012-05-29T13:40:09 | D102: 3.5 lakhs p.a | E102: 350000 | F102: INR | G102: =Data!$E1030*VLOOKUP(Data!$F1030,tblXrate[],2,FALSE) -> 25407.98878 | H102: I dont know | I102: Analyst | J102: India | K102: =VLOOKUP(Data!$J1030,tblCountries[[Actual]:[Mapping]],2,FALSE) -> Greece | L102: 4 to 6 hours a day | M102: 1.5 | N102: India
B103: ID1444 | C103: 2012-05-30T10:40:24 | D103: 75000 | E103: 75000 | F103: USD | G103: =Data!$E1149*VLOOKUP(Data!$F1149,tblXrate[],2,FALSE) -> 38111.98317 | H103: Business Analyst | I103: Analyst | J103: USA | K103: =VLOOKUP(Data!$J1149,tblCountries[[Actual]:[Mapping]],2,FALSE) -> Belgium | L103: 2 to 3 hours per day | M103: 1.5 | N103: USA
B104: ID1520 | C104: 2012-05-31T04:12:19 | D104: 75000 | E104: 75000 | F104: USD | G104: =Data!$E1206*VLOOKUP(Data!$F1206,tblXrate[],2,FALSE) -> 50000 | H104: Financial Analyst | I104: Analyst | J104: USA | K104: =VLOOKUP(Data!$J1206,tblCountries[[Actual]:[Mapping]],2,FALSE) -> India | L104: All the 8 hours baby, all the 8! | M104: 1.5 | N104: USA
B105: ID1886 | C105: 2012-06-17T12:00:57 | D105: 25000 | E105: 25000 | F105: USD | G105: =Data!$E1496*VLOOKUP(Data!$F1496,tblXrate[],2,FALSE) -> 28000 | H105: Data Analyst | I105: Analyst | J105: India | K105: =VLOOKUP(Data!$J1496,tblCountries[[Actual]:[Mapping]],2,FALSE) -> USA | L105: All the 8 hours baby, all the 8! | M105: 1.5 | N105: India
B106: ID1703 | C106: 2012-06-06T01:26:56 | D106: 38920EUR | E106: 38920 | F106: EUR | G106: =Data!$E1855*VLOOKUP(Data!$F1855,tblXrate[],2,FALSE) -> 15000 | H106: functional analyst | I106: Analyst | J106: Belgium | K106: Other Countries | L106: 4 to 6 hours a day | M106: 1.5 | N106: Belgium
B107: ID1474 | C107: 2012-05-30T17:01:10 | D107: 230000 | E107: 230000 | F107: INR | G107: =Data!$E1172*VLOOKUP(Data!$F1172,tblXrate[],2,FALSE) -> 41768.72421 | H107: Process Assocaite | I107: Analyst | J107: India | K107: =VLOOKUP(Data!$J1172,tblCountries[[Actual]:[Mapping]],2,FALSE) -> UK | L107: 4 to 6 hours a day | M107: 1.6 | N107: India
B108: ID1916 | C108: 2012-06-20T01:20:49 | D108: 250000 | E108: 250000 | F108: INR | G108: =Data!$E1521*VLOOKUP(Data!$F1521,tblXrate[],2,FALSE) -> 6232.770841 | H108: research associate | I108: Analyst | J108: India | K108: =VLOOKUP(Data!$J1521,tblCountries[[Actual]:[Mapping]],2,FALSE) -> India | L108: Excel ?!? What Excel? | M108: 1.6 | N108: India
B109: ID0567 | C109: 2012-05-26T06:40:59 | D109: 45000 | E109: 45000 | F109: USD | G109: =Data!$E469*VLOOKUP(Data!$F469,tblXrate[],2,FALSE) -> 7000 | H109: Workflow Analyst | I109: Analyst | J109: USA | K109: =VLOOKUP(Data!$J469,tblCountries[[Actual]:[Mapping]],2,FALSE) -> India | L109: 4 to 6 hours a day | M109: 2 | N109: USA
B110: ID0639 | C110: 2012-05-26T11:39:48 | D110: Rs 300000 | E110: 300000 | F110: INR | G110: =Data!$E531*VLOOKUP(Data!$F531,tblXrate[],2,FALSE) -> 40000 | H110: Planning Engineer | I110: Engineer | J110: India | K110: =VLOOKUP(Data!$J531,tblCountries[[Actual]:[Mapping]],2,FALSE) -> India | L110: All the 8 hours baby, all the 8! | M110: 2 | N110: India
B111: ID0658 | C111: 2012-05-26T12:26:33 | D111: 15000 | E111: 15000 | F111: USD | G111: =Data!$E548*VLOOKUP(Data!$F548,tblXrate[],2,FALSE) -> 42000 | H111: MIS Executive | I111: Reporting | J111: India | K111: =VLOOKUP(Data!$J548,tblCountries[[Actual]:[Mapping]],2,FALSE) -> Kuwait | L111: All the 8 hours baby, all the 8! | M111: 2 | N111: India
B112: ID0659 | C112: 2012-05-26T12:27:20 | D112: 200000 | E112: 200000 | F112: PKR | G112: =Data!$E549*VLOOKUP(Data!$F549,tblXrate[],2,FALSE) -> 60000 | H112: Accounts Officer | I112: Accountant | J112: Pakistan | K112: =VLOOKUP(Data!$J549,tblCountries[[Actual]:[Mapping]],2,FALSE) -> Finland | L112: 2 to 3 hours per day | M112: 2 | N112: Pakistan
B113: ID0684 | C113: 2012-05-26T13:11:01 | D113: Rs. 260000 | E113: 260000 | F113: INR | G113: =Data!$E569*VLOOKUP(Data!$F569,tblXrate[],2,FALSE) -> 57875.72923 | H113: Analyst | I113: Analyst | J113: India | K113: =VLOOKUP(Data!$J569,tblCountries[[Actual]:[Mapping]],2,FALSE) -> India | L113: 4 to 6 hours a day | M113: 2 | N113: India
B114: ID0692 | C114: 2012-05-26T13:24:05 | D114: 4500 rs. per month | E114: 648000 | F114: INR | G114: =Data!$E576*VLOOKUP(Data!$F576,tblXrate[],2,FALSE) -> 80135.62509 | H114: COMPUTER OPERATOR | I114: Analyst | J114: India | K114: =VLOOKUP(Data!$J576,tblCountries[[Actual]:[Mapping]],2,FALSE) -> India | L114: All the 8 hours baby, all the 8! | M114: 2 | N114: India
B115: ID0702 | C115: 2012-05-26T13:46:52 | D115: 370000 inr | E115: 370000 | F115: INR | G115: =Data!$E585*VLOOKUP(Data!$F585,tblXrate[],2,FALSE) -> 8013.562509 | H115: Operations Analyst | I115: Analyst | J115: India | K115: =VLOOKUP(Data!$J585,tblCountries[[Actual]:[Mapping]],2,FALSE) -> India | L115: All the 8 hours baby, all the 8! | M115: 2 | N115: India
B116: ID0703 | C116: 2012-05-26T13:47:06 | D116: 370000 inr | E116: 370000 | F116: INR | G116: =Data!$E586*VLOOKUP(Data!$F586,tblXrate[],2,FALSE) -> 13000 | H116: Operations Analyst | I116: Analyst | J116: India | K116: =VLOOKUP(Data!$J586,tblCountries[[Actual]:[Mapping]],2,FALSE) -> India | L116: All the 8 hours baby, all the 8! | M116: 2 | N116: India
B117: ID0706 | C117: 2012-05-26T14:01:00 | D117: 600000 | E117: 600000 | F117: INR | G117: =Data!$E589*VLOOKUP(Data!$F589,tblXrate[],2,FALSE) -> 75010 | H117: senior executive | I117: Manager | J117: India | K117: =VLOOKUP(Data!$J589,tblCountries[[Actual]:[Mapping]],2,FALSE) -> USA | L117: 1 or 2 hours a day | M117: 2 | N117: India
B118: ID0707 | C118: 2012-05-26T14:01:09 | D118: 10000 | E118: 10000 | F118: USD | G118: =Data!$E590*VLOOKUP(Data!$F590,tblXrate[],2,FALSE) -> 8654.64751 | H118: Executive | I118: Manager | J118: India | K118: =VLOOKUP(Data!$J590,tblCountries[[Actual]:[Mapping]],2,FALSE) -> India | L118: 4 to 6 hours a day | M118: 2 | N118: India
B119: ID0713 | C119: 2012-05-26T14:18:11 | D119: 636000 | E119: 636000 | F119: INR | G119: =Data!$E596*VLOOKUP(Data!$F596,tblXrate[],2,FALSE) -> 11397.06668 | H119: Audit Manager | I119: Manager | J119: India | K119: =VLOOKUP(Data!$J596,tblCountries[[Actual]:[Mapping]],2,FALSE) -> India | L119: 4 to 6 hours a day | M119: 2 | N119: India
B120: ID0717 | C120: 2012-05-26T14:33:11 | D120: 500000 | E120: 500000 | F120: INR | G120: =Data!$E598*VLOOKUP(Data!$F598,tblXrate[],2,FALSE) -> 6720 | H120: Engineer | I120: Engineer | J120: India | K120: =VLOOKUP(Data!$J598,tblCountries[[Actual]:[Mapping]],2,FALSE) -> India | L120: All the 8 hours baby, all the 8! | M120: 2 | N120: India
B121: ID0723 | C121: 2012-05-26T14:57:45 | D121: PKR 17000 | E121: 204000 | F121: PKR | G121: =Data!$E603*VLOOKUP(Data!$F603,tblXrate[],2,FALSE) -> 3561.583337 | H121: Accounts Manager | I121: Manager | J121: Pakistan | K121: =VLOOKUP(Data!$J603,tblCountries[[Actual]:[Mapping]],2,FALSE) -> India | L121: All the 8 hours baby, all the 8! | M121: 2 | N121: Pakistan
B122: ID0744 | C122: 2012-05-26T16:01:54 | D122: 15000 | E122: 15000 | F122: USD | G122: =Data!$E619*VLOOKUP(Data!$F619,tblXrate[],2,FALSE) -> 6410.850007 | H122: PROCSS ASOCIATE | I122: Controller | J122: India | K122: =VLOOKUP(Data!$J619,tblCountries[[Actual]:[Mapping]],2,FALSE) -> India | L122: 2 to 3 hours per day | M122: 2 | N122: India
B123: ID0766 | C123: 2012-05-26T17:10:20 | D123: 120000 | E123: 120000 | F123: INR | G123: =Data!$E636*VLOOKUP(Data!$F636,tblXrate[],2,FALSE) -> 16027.12502 | H123: ACCOUNTANT | I123: Accountant | J123: India | K123: =VLOOKUP(Data!$J636,tblCountries[[Actual]:[Mapping]],2,FALSE) -> India | L123: 2 to 3 hours per day | M123: 2 | N123: India
B124: ID0775 | C124: 2012-05-26T18:19:49 | D124: 2.2 lakhs per annum | E124: 220000 | F124: INR | G124: =Data!$E643*VLOOKUP(Data!$F643,tblXrate[],2,FALSE) -> 8400 | H124: Associate Software Engineer | I124: Engineer | J124: India | K124: =VLOOKUP(Data!$J643,tblCountries[[Actual]:[Mapping]],2,FALSE) -> India | L124: 4 to 6 hours a day | M124: 2 | N124: India
B125: ID0794 | C125: 2012-05-26T20:31:30 | D125: ONE LACK FIFTY THOUSAND(INR) | E125: 150000 | F125: INR | G125: =Data!$E660*VLOOKUP(Data!$F660,tblXrate[],2,FALSE) -> 76223.96634 | H125: WORKING WITH PRODUCT TEAM OF MAKEMYTRIP.COM | I125: Analyst | J125: India | K125: =VLOOKUP(Data!$J660,tblCountries[[Actual]:[Mapping]],2,FALSE) -> Germany | L125: 4 to 6 hours a day | M125: 2 | N125: India
B126: ID0805 | C126: 2012-05-26T21:27:01 | D126: 850000 | E126: 850000 | F126: INR | G126: =Data!$E669*VLOOKUP(Data!$F669,tblXrate[],2,FALSE) -> 14246.33335 | H126: Senior Research Analyst | I126: Analyst | J126: India | K126: =VLOOKUP(Data!$J669,tblCountries[[Actual]:[Mapping]],2,FALSE) -> India | L126: 4 to 6 hours a day | M126: 2 | N126: India
B127: ID0809 | C127: 2012-05-26T21:56:36 | D127: 170000 | E127: 170000 | F127: INR | G127: =Data!$E673*VLOOKUP(Data!$F673,tblXrate[],2,FALSE) -> 20000 | H127: Sr. Executive MIS | I127: Reporting | J127: India | K127: =VLOOKUP(Data!$J673,tblCountries[[Actual]:[Mapping]],2,FALSE) -> India | L127: 4 to 6 hours a day | M127: 2 | N127: India
B128: ID0830 | C128: 2012-05-26T23:04:53 | D128: 42000 | E128: 42000 | F128: EUR | G128: =Data!$E688*VLOOKUP(Data!$F688,tblXrate[],2,FALSE) -> 55000 | H128: Project Engineer | I128: Engineer | J128: The Netherlands | K128: =VLOOKUP(Data!$J688,tblCountries[[Actual]:[Mapping]],2,FALSE) -> USA | L128: 4 to 6 hours a day | M128: 2 | N128: Netherlands
B129: ID0842 | C129: 2012-05-27T00:12:53 | D129: 30000 | E129: 30000 | F129: USD | G129: =Data!$E697*VLOOKUP(Data!$F697,tblXrate[],2,FALSE) -> 94570.69632 | H129: MIS Executive | I129: Reporting | J129: India | K129: =VLOOKUP(Data!$J697,tblCountries[[Actual]:[Mapping]],2,FALSE) -> UK | L129: 4 to 6 hours a day | M129: 2 | N129: India
B130: ID0848 | C130: 2012-05-27T01:22:06 | D130: INR 2,00,000 | E130: 200000 | F130: INR | G130: =Data!$E702*VLOOKUP(Data!$F702,tblXrate[],2,FALSE) -> 127488.7071 | H130: Sales Analyst | I130: Analyst | J130: India | K130: =VLOOKUP(Data!$J702,tblCountries[[Actual]:[Mapping]],2,FALSE) -> Australia | L130: 4 to 6 hours a day | M130: 2 | N130: India
B131: ID0859 | C131: 2012-05-27T03:37:32 | D131: 3000 $ | E131: 3000 | F131: USD | G131: =Data!$E711*VLOOKUP(Data!$F711,tblXrate[],2,FALSE) -> 52801.97211 | H131: Statistical Analyst | I131: Analyst | J131: Pakistan | K131: =VLOOKUP(Data!$J711,tblCountries[[Actual]:[Mapping]],2,FALSE) -> UK | L131: 2 to 3 hours per day | M131: 2 | N131: Pakistan
B132: ID0867 | C132: 2012-05-27T06:17:41 | D132: 40000 | E132: 40000 | F132: USD | G132: =Data!$E715*VLOOKUP(Data!$F715,tblXrate[],2,FALSE) -> 30000 | H132: IT Capacity Planner | I132: Analyst | J132: USA | K132: =VLOOKUP(Data!$J715,tblCountries[[Actual]:[Mapping]],2,FALSE) -> Indonesia | L132: All the 8 hours baby, all the 8! | M132: 2 | N132: USA
B133: ID0912 | C133: 2012-05-27T16:30:54 | D133: 775000 | E133: 775000 | F133: INR | G133: =Data!$E745*VLOOKUP(Data!$F745,tblXrate[],2,FALSE) -> 10684.75001 | H133: Analyst | I133: Analyst | J133: India | K133: =VLOOKUP(Data!$J745,tblCountries[[Actual]:[Mapping]],2,FALSE) -> India | L133: 4 to 6 hours a day | M133: 2 | N133: India
B134: ID0946 | C134: 2012-05-28T00:28:56 | D134: Rs 40000 | E134: 480000 | F134: INR | G134: =Data!$E765*VLOOKUP(Data!$F765,tblXrate[],2,FALSE) -> 70000 | H134: Manager | I134: Manager | J134: India | K134: =VLOOKUP(Data!$J765,tblCountries[[Actual]:[Mapping]],2,FALSE) -> USA | L134: 2 to 3 hours per day | M134: 2 | N134: India
B135: ID0967 | C135: 2012-05-28T05:51:20 | D135: 15000 | E135: 15000 | F135: USD | G135: =Data!$E776*VLOOKUP(Data!$F776,tblXrate[],2,FALSE) -> 45000 | H135: Quality Executive | I135: Analyst | J135: India | K135: =VLOOKUP(Data!$J776,tblCountries[[Actual]:[Mapping]],2,FALSE) -> USA | L135: 2 to 3 hours per day | M135: 2 | N135: India
B136: ID0974 | C136: 2012-05-28T07:21:12 | D136: 56600 | E136: 56600 | F136: AUD | G136: =Data!$E782*VLOOKUP(Data!$F782,tblXrate[],2,FALSE) -> 6410.850007 | H136: Operations Coordinator | I136: Manager | J136: Australia | K136: =VLOOKUP(Data!$J782,tblCountries[[Actual]:[Mapping]],2,FALSE) -> India | L136: 2 to 3 hours per day | M136: 2 | N136: Australia
B137: ID0975 | C137: 2012-05-28T07:23:07 | D137: 20000 | E137: 20000 | F137: USD | G137: =Data!$E783*VLOOKUP(Data!$F783,tblXrate[],2,FALSE) -> 85000 | H137: data analyst | I137: Analyst | J137: Australia | K137: =VLOOKUP(Data!$J783,tblCountries[[Actual]:[Mapping]],2,FALSE) -> USA | L137: 2 to 3 hours per day | M137: 2 | N137: Australia
B138: ID0989 | C138: 2012-05-28T08:41:13 | D138: 120000 | E138: 120000 | F138: AUD | G138: =Data!$E795*VLOOKUP(Data!$F795,tblXrate[],2,FALSE) -> 11000 | H138: analyst | I138: Analyst | J138: Australia | K138: =VLOOKUP(Data!$J795,tblCountries[[Actual]:[Mapping]],2,FALSE) -> India | L138: 4 to 6 hours a day | M138: 2 | N138: Australia
B139: ID1012 | C139: 2012-05-28T11:33:05 | D139: AUD$70,000 | E139: 70000 | F139: AUD | G139: =Data!$E814*VLOOKUP(Data!$F814,tblXrate[],2,FALSE) -> 17807.91669 | H139: Director | I139: CXO or Top Mgmt. | J139: Australia | K139: =VLOOKUP(Data!$J814,tblCountries[[Actual]:[Mapping]],2,FALSE) -> India | L139: All the 8 hours baby, all the 8! | M139: 2 | N139: Australia
B140: ID1034 | C140: 2012-05-28T13:01:42 | D140: PK RS 456000 | E140: 456000 | F140: PKR | G140: =Data!$E830*VLOOKUP(Data!$F830,tblXrate[],2,FALSE) -> 70000 | H140: Strategic Planning Executive | I140: Manager | J140: Pakistan | K140: =VLOOKUP(Data!$J830,tblCountries[[Actual]:[Mapping]],2,FALSE) -> USA | L140: 4 to 6 hours a day | M140: 2 | N140: Pakistan
B141: ID1054 | C141: 2012-05-28T14:12:52 | D141: Rs. 1200000 | E141: 1200000 | F141: INR | G141: =Data!$E844*VLOOKUP(Data!$F844,tblXrate[],2,FALSE) -> 33099.74371 | H141: Management Trainee | I141: Manager | J141: India | K141: =VLOOKUP(Data!$J844,tblCountries[[Actual]:[Mapping]],2,FALSE) -> UK | L141: 2 to 3 hours per day | M141: 2 | N141: India
B142: ID1133 | C142: 2012-05-28T18:05:16 | D142: Â£15000 | E142: 15000 | F142: GBP | G142: =Data!$E909*VLOOKUP(Data!$F909,tblXrate[],2,FALSE) -> 87712.23045 | H142: MI Specialist | I142: Reporting | J142: UK | K142: =VLOOKUP(Data!$J909,tblCountries[[Actual]:[Mapping]],2,FALSE) -> Australia | L142: All the 8 hours baby, all the 8! | M142: 2 | N142: UK
B143: ID1139 | C143: 2012-05-28T18:40:08 | D143: 400000 | E143: 400000 | F143: INR | G143: =Data!$E912*VLOOKUP(Data!$F912,tblXrate[],2,FALSE) -> 45000 | H143: software engineer | I143: Engineer | J143: India | K143: =VLOOKUP(Data!$J912,tblCountries[[Actual]:[Mapping]],2,FALSE) -> USA | L143: 1 or 2 hours a day | M143: 2 | N143: India
B144: ID1145 | C144: 2012-05-28T19:23:29 | D144: 40000 | E144: 40000 | F144: USD | G144: =Data!$E917*VLOOKUP(Data!$F917,tblXrate[],2,FALSE) -> 72768.7527 | H144: Engineer | I144: Engineer | J144: India | K144: =VLOOKUP(Data!$J917,tblCountries[[Actual]:[Mapping]],2,FALSE) -> Canada | L144: 2 to 3 hours per day | M144: 2 | N144: India
B145: ID1163 | C145: 2012-05-28T22:13:24 | D145: 8600 | E145: 8600 | F145: USD | G145: =Data!$E929*VLOOKUP(Data!$F929,tblXrate[],2,FALSE) -> 63000 | H145: Catlog associates | I145: Analyst | J145: India | K145: =VLOOKUP(Data!$J929,tblCountries[[Actual]:[Mapping]],2,FALSE) -> USA | L145: 4 to 6 hours a day | M145: 2 | N145: India
B146: ID1181 | C146: 2012-05-28T22:51:27 | D146: 31763 | E146: 31763 | F146: GBP | G146: =Data!$E943*VLOOKUP(Data!$F943,tblXrate[],2,FALSE) -> 36000 | H146: Network Administrator | I146: Analyst | J146: UK | K146: =VLOOKUP(Data!$J943,tblCountries[[Actual]:[Mapping]],2,FALSE) -> Russia | L146: 2 to 3 hours per day | M146: 2 | N146: UK
B147: ID1194 | C147: 2012-05-28T23:17:31 | D147: 56000 | E147: 56000 | F147: USD | G147: =Data!$E951*VLOOKUP(Data!$F951,tblXrate[],2,FALSE) -> 60000 | H147: Analyst | I147: Analyst | J147: USA | K147: =VLOOKUP(Data!$J951,tblCountries[[Actual]:[Mapping]],2,FALSE) -> Singapore | L147: 1 or 2 hours a day | M147: 2 | N147: USA
B148: ID1198 | C148: 2012-05-28T23:33:59 | D148: 88000 | E148: 88000 | F148: USD | G148: =Data!$E954*VLOOKUP(Data!$F954,tblXrate[],2,FALSE) -> 55262.3756 | H148: Manager, Strategy & Insights | I148: Manager | J148: USA | K148: =VLOOKUP(Data!$J954,tblCountries[[Actual]:[Mapping]],2,FALSE) -> Spain | L148: 4 to 6 hours a day | M148: 2 | N148: USA
B149: ID1223 | C149: 2012-05-29T01:19:26 | D149: INR 450000 | E149: 450000 | F149: INR | G149: =Data!$E974*VLOOKUP(Data!$F974,tblXrate[],2,FALSE) -> 10684.75001 | H149: ASSISTANT MANAGER | I149: Manager | J149: India | K149: =VLOOKUP(Data!$J974,tblCountries[[Actual]:[Mapping]],2,FALSE) -> India | L149: All the 8 hours baby, all the 8! | M149: 2 | N149: India
B150: ID1232 | C150: 2012-05-29T02:12:32 | D150: Â£26000 | E150: 26000 | F150: GBP | G150: =Data!$E981*VLOOKUP(Data!$F981,tblXrate[],2,FALSE) -> 3561.583337 | H150: Business Analyst | I150: Analyst | J150: UK | K150: =VLOOKUP(Data!$J981,tblCountries[[Actual]:[Mapping]],2,FALSE) -> India | L150: 4 to 6 hours a day | M150: 2 | N150: UK
B151: ID1274 | C151: 2012-05-29T09:52:02 | D151: 48000 $AUD | E151: 48000 | F151: AUD | G151: =Data!$E1011*VLOOKUP(Data!$F1011,tblXrate[],2,FALSE) -> 64000 | H151: Research Assistant | I151: Analyst | J151: Australia | K151: =VLOOKUP(Data!$J1011,tblCountries[[Actual]:[Mapping]],2,FALSE) -> USA | L151: 1 or 2 hours a day | M151: 2 | N151: Australia
B152: ID1299 | C152: 2012-05-29T13:23:45 | D152: 6,00,000 INR | E152: 600000 | F152: INR | G152: =Data!$E1029*VLOOKUP(Data!$F1029,tblXrate[],2,FALSE) -> 32666.30552 | H152: Senior Business Executive | I152: Manager | J152: India | K152: =VLOOKUP(Data!$J1029,tblCountries[[Actual]:[Mapping]],2,FALSE) -> UAE | L152: 2 to 3 hours per day | M152: 2 | N152: India
B153: ID1309 | C153: 2012-05-29T14:34:42 | D153: 500000 Rupees | E153: 500000 | F153: INR | G153: =Data!$E1037*VLOOKUP(Data!$F1037,tblXrate[],2,FALSE) -> 38111.98317 | H153: Senior software engineer | I153: Engineer | J153: India | K153: =VLOOKUP(Data!$J1037,tblCountries[[Actual]:[Mapping]],2,FALSE) -> Spain | L153: 4 to 6 hours a day | M153: 2 | N153: India
B154: ID1330 | C154: 2012-05-29T16:26:15 | D154: 17000 Rs | E154: 204000 | F154: INR | G154: =Data!$E1051*VLOOKUP(Data!$F1051,tblXrate[],2,FALSE) -> 72000 | H154: MIS Associate | I154: Reporting | J154: India | K154: =VLOOKUP(Data!$J1051,tblCountries[[Actual]:[Mapping]],2,FALSE) -> USA | L154: All the 8 hours baby, all the 8! | M154: 2 | N154: India
B155: ID1340 | C155: 2012-05-29T17:17:13 | D155: Â£26000 | E155: 26000 | F155: GBP | G155: =Data!$E1057*VLOOKUP(Data!$F1057,tblXrate[],2,FALSE) -> 3205.425004 | H155: Web Analyst | I155: Analyst | J155: UK | K155: =VLOOKUP(Data!$J1057,tblCountries[[Actual]:[Mapping]],2,FALSE) -> India | L155: 4 to 6 hours a day | M155: 2 | N155: UK
B156: ID1355 | C156: 2012-05-29T18:38:51 | D156: 125000 | E156: 125000 | F156: USD | G156: =Data!$E1069*VLOOKUP(Data!$F1069,tblXrate[],2,FALSE) -> 55000 | H156: Vice President of Performance Management | I156: Manager | J156: USA | K156: =VLOOKUP(Data!$J1069,tblCountries[[Actual]:[Mapping]],2,FALSE) -> USA | L156: 4 to 6 hours a day | M156: 2 | N156: USA
B157: ID1426 | C157: 2012-05-30T01:25:26 | D157: 57678.4 | E157: 57678 | F157: USD | G157: =Data!$E1132*VLOOKUP(Data!$F1132,tblXrate[],2,FALSE) -> 69000 | H157: Financial Analyst | I157: Analyst | J157: USA | K157: =VLOOKUP(Data!$J1132,tblCountries[[Actual]:[Mapping]],2,FALSE) -> USA | L157: 4 to 6 hours a day | M157: 2 | N157: USA
B158: ID1438 | C158: 2012-05-30T03:20:17 | D158: 24000 USD | E158: 24000 | F158: USD | G158: =Data!$E1144*VLOOKUP(Data!$F1144,tblXrate[],2,FALSE) -> 36500 | H158: inventory controller | I158: Controller | J158: USA | K158: =VLOOKUP(Data!$J1144,tblCountries[[Actual]:[Mapping]],2,FALSE) -> Saudi Arabia | L158: 1 or 2 hours a day | M158: 2 | N158: USA
B159: ID1462 | C159: 2012-05-30T13:56:48 | D159: 320000 INR | E159: 320000 | F159: INR | G159: =Data!$E1162*VLOOKUP(Data!$F1162,tblXrate[],2,FALSE) -> 108110.4236 | H159: Analyst | I159: Analyst | J159: India | K159: =VLOOKUP(Data!$J1162,tblCountries[[Actual]:[Mapping]],2,FALSE) -> Australia | L159: 2 to 3 hours per day | M159: 2 | N159: India
B160: ID1480 | C160: 2012-05-30T18:16:05 | D160: 42000 | E160: 42000 | F160: USD | G160: =Data!$E1177*VLOOKUP(Data!$F1177,tblXrate[],2,FALSE) -> 85000 | H160: Service Solution Rep | I160: Analyst | J160: USA | K160: =VLOOKUP(Data!$J1177,tblCountries[[Actual]:[Mapping]],2,FALSE) -> USA | L160: All the 8 hours baby, all the 8! | M160: 2 | N160: USA
B161: ID1502 | C161: 2012-05-30T22:32:21 | D161: 66000 | E161: 66000 | F161: USD | G161: =Data!$E1192*VLOOKUP(Data!$F1192,tblXrate[],2,FALSE) -> 8000 | H161: Director of Business Analytics | I161: Analyst | J161: USA | K161: =VLOOKUP(Data!$J1192,tblCountries[[Actual]:[Mapping]],2,FALSE) -> India | L161: 4 to 6 hours a day | M161: 2 | N161: USA
B162: ID1562 | C162: 2012-05-31T23:09:08 | D162: Â£25000 | E162: 25000 | F162: GBP | G162: =Data!$E1239*VLOOKUP(Data!$F1239,tblXrate[],2,FALSE) -> 70928.02224 | H162: Reporting Team Lead | I162: Reporting | J162: UK | K162: =VLOOKUP(Data!$J1239,tblCountries[[Actual]:[Mapping]],2,FALSE) -> UK | L162: 4 to 6 hours a day | M162: 2 | N162: UK
B163: ID1601 | C163: 2012-06-01T20:12:22 | D163: 500 USD | E163: 6000 | F163: USD | G163: =Data!$E1267*VLOOKUP(Data!$F1267,tblXrate[],2,FALSE) -> 88000 | H163: Business Analyst | I163: Analyst | J163: India | K163: =VLOOKUP(Data!$J1267,tblCountries[[Actual]:[Mapping]],2,FALSE) -> USA | L163: 4 to 6 hours a day | M163: 2 | N163: India
B164: ID1603 | C164: 2012-06-01T20:37:53 | D164: 50000 | E164: 50000 | F164: USD | G164: =Data!$E1269*VLOOKUP(Data!$F1269,tblXrate[],2,FALSE) -> 24000 | H164: Sales Operations Analyst | I164: Analyst | J164: USA | K164: =VLOOKUP(Data!$J1269,tblCountries[[Actual]:[Mapping]],2,FALSE) -> Argentina | L164: All the 8 hours baby, all the 8! | M164: 2 | N164: USA
B165: ID1610 | C165: 2012-06-02T02:24:39 | D165: 55000 | E165: 55000 | F165: USD | G165: =Data!$E1275*VLOOKUP(Data!$F1275,tblXrate[],2,FALSE) -> 69960 | H165: Business Analyst | I165: Analyst | J165: USA | K165: =VLOOKUP(Data!$J1275,tblCountries[[Actual]:[Mapping]],2,FALSE) -> USA | L165: 4 to 6 hours a day | M165: 2 | N165: USA
B166: ID1618 | C166: 2012-06-02T06:31:21 | D166: 42000 US | E166: 42000 | F166: USD | G166: =Data!$E1283*VLOOKUP(Data!$F1283,tblXrate[],2,FALSE) -> 75000 | H166: production clerk | I166: Analyst | J166: USA | K166: =VLOOKUP(Data!$J1283,tblCountries[[Actual]:[Mapping]],2,FALSE) -> USA | L166: 4 to 6 hours a day | M166: 2 | N166: USA
B167: ID1629 | C167: 2012-06-02T21:42:42 | D167: 6.8 Lac INR | E167: 680000 | F167: INR | G167: =Data!$E1292*VLOOKUP(Data!$F1292,tblXrate[],2,FALSE) -> 67775.6657 | H167: Deputy Manager | I167: Manager | J167: India | K167: =VLOOKUP(Data!$J1292,tblCountries[[Actual]:[Mapping]],2,FALSE) -> UK | L167: 1 or 2 hours a day | M167: 2 | N167: India
B168: ID1657 | C168: 2012-06-04T12:22:05 | D168: 10000 | E168: 10000 | F168: USD | G168: =Data!$E1312*VLOOKUP(Data!$F1312,tblXrate[],2,FALSE) -> 75000 | H168: MIS Executive | I168: Reporting | J168: India | K168: =VLOOKUP(Data!$J1312,tblCountries[[Actual]:[Mapping]],2,FALSE) -> USA | L168: All the 8 hours baby, all the 8! | M168: 2 | N168: India
B169: ID1679 | C169: 2012-06-05T04:06:09 | D169: 80000 | E169: 80000 | F169: USD | G169: =Data!$E1327*VLOOKUP(Data!$F1327,tblXrate[],2,FALSE) -> 37000 | H169: Data Resource Specialist | I169: Specialist | J169: USA | K169: =VLOOKUP(Data!$J1327,tblCountries[[Actual]:[Mapping]],2,FALSE) -> USA | L169: 2 to 3 hours per day | M169: 2 | N169: USA
B170: ID1711 | C170: 2012-06-06T07:28:48 | D170: 10000 | E170: 10000 | F170: USD | G170: =Data!$E1350*VLOOKUP(Data!$F1350,tblXrate[],2,FALSE) -> 9794.354178 | H170: Student assistant | I170: Analyst | J170: USA | K170: =VLOOKUP(Data!$J1350,tblCountries[[Actual]:[Mapping]],2,FALSE) -> India | L170: 4 to 6 hours a day | M170: 2 | N170: USA
B171: ID1714 | C171: 2012-06-06T11:21:08 | D171: 36000 | E171: 36000 | F171: CAD | G171: =Data!$E1353*VLOOKUP(Data!$F1353,tblXrate[],2,FALSE) -> 96000 | H171: data organizer | I171: Analyst | J171: Canada | K171: =VLOOKUP(Data!$J1353,tblCountries[[Actual]:[Mapping]],2,FALSE) -> USA | L171: All the 8 hours baby, all the 8! | M171: 2 | N171: Canada
B172: ID1727 | C172: 2012-06-07T00:32:24 | D172: 500000vINR | E172: 500000 | F172: INR | G172: =Data!$E1363*VLOOKUP(Data!$F1363,tblXrate[],2,FALSE) -> 150000 | H172: Business Analyst | I172: Analyst | J172: India | K172: =VLOOKUP(Data!$J1363,tblCountries[[Actual]:[Mapping]],2,FALSE) -> USA | L172: 4 to 6 hours a day | M172: 2 | N172: India
B173: ID1729 | C173: 2012-06-07T06:22:17 | D173: Â£27000 | E173: 27000 | F173: GBP | G173: =Data!$E1364*VLOOKUP(Data!$F1364,tblXrate[],2,FALSE) -> 69000 | H173: Network Designer | I173: Analyst | J173: UK | K173: =VLOOKUP(Data!$J1364,tblCountries[[Actual]:[Mapping]],2,FALSE) -> USA | L173: 4 to 6 hours a day | M173: 2 | N173: UK
B174: ID1731 | C174: 2012-06-07T09:25:45 | D174: 70000 | E174: 70000 | F174: CAD | G174: =Data!$E1366*VLOOKUP(Data!$F1366,tblXrate[],2,FALSE) -> 7123.166675 | H174: Financial Analyst | I174: Analyst | J174: Canada | K174: =VLOOKUP(Data!$J1366,tblCountries[[Actual]:[Mapping]],2,FALSE) -> India | L174: All the 8 hours baby, all the 8! | M174: 2 | N174: Canada
B175: ID1733 | C175: 2012-06-07T15:19:53 | D175: 50000 | E175: 50000 | F175: GBP | G175: =Data!$E1367*VLOOKUP(Data!$F1367,tblXrate[],2,FALSE) -> 71393.67595 | H175: Research Analyst | I175: Analyst | J175: UK | K175: =VLOOKUP(Data!$J1367,tblCountries[[Actual]:[Mapping]],2,FALSE) -> Australia | L175: 2 to 3 hours per day | M175: 2 | N175: UK
B176: ID1736 | C176: 2012-06-07T17:09:18 | D176: 360000 | E176: 360000 | F176: INR | G176: =Data!$E1370*VLOOKUP(Data!$F1370,tblXrate[],2,FALSE) -> 58000 | H176: Baan ERP Functional Consultant | I176: Consultant | J176: India | K176: =VLOOKUP(Data!$J1370,tblCountries[[Actual]:[Mapping]],2,FALSE) -> USA | L176: 1 or 2 hours a day | M176: 2 | N176: India
B177: ID1740 | C177: 2012-06-07T23:33:23 | D177: 45000 | E177: 45000 | F177: USD | G177: =Data!$E1374*VLOOKUP(Data!$F1374,tblXrate[],2,FALSE) -> 12000 | H177: Sourcing Analyst | I177: Analyst | J177: USA | K177: =VLOOKUP(Data!$J1374,tblCountries[[Actual]:[Mapping]],2,FALSE) -> USA | L177: All the 8 hours baby, all the 8! | M177: 2 | N177: USA
B178: ID1753 | C178: 2012-06-08T13:55:44 | D178: 15000inr | E178: 180000 | F178: INR | G178: =Data!$E1386*VLOOKUP(Data!$F1386,tblXrate[],2,FALSE) -> 85000 | H178: mis | I178: Reporting | J178: India | K178: =VLOOKUP(Data!$J1386,tblCountries[[Actual]:[Mapping]],2,FALSE) -> USA | L178: 4 to 6 hours a day | M178: 2 | N178: India
B179: ID1754 | C179: 2012-06-08T14:43:05 | D179: 60000 | E179: 60000 | F179: USD | G179: =Data!$E1387*VLOOKUP(Data!$F1387,tblXrate[],2,FALSE) -> 48275.17868 | H179: Project Lead | I179: Manager | J179: USA | K179: =VLOOKUP(Data!$J1387,tblCountries[[Actual]:[Mapping]],2,FALSE) -> Netherlands | L179: All the 8 hours baby, all the 8! | M179: 2 | N179: USA
B180: ID1755 | C180: 2012-06-08T14:43:40 | D180: 60000 | E180: 60000 | F180: USD | G180: =Data!$E1388*VLOOKUP(Data!$F1388,tblXrate[],2,FALSE) -> 86692.32079 | H180: Project Lead | I180: Manager | J180: USA | K180: =VLOOKUP(Data!$J1388,tblCountries[[Actual]:[Mapping]],2,FALSE) -> Australia | L180: All the 8 hours baby, all the 8! | M180: 2 | N180: USA
B181: ID1768 | C181: 2012-06-09T01:15:44 | D181: 65000 | E181: 65000 | F181: USD | G181: =Data!$E1400*VLOOKUP(Data!$F1400,tblXrate[],2,FALSE) -> 150000 | H181: Compliance Officer | I181: Manager | J181: USA | K181: =VLOOKUP(Data!$J1400,tblCountries[[Actual]:[Mapping]],2,FALSE) -> USA | L181: 4 to 6 hours a day | M181: 2 | N181: USA
B182: ID1793 | C182: 2012-06-11T19:56:36 | D182: 11000 | E182: 11000 | F182: USD | G182: =Data!$E1419*VLOOKUP(Data!$F1419,tblXrate[],2,FALSE) -> 52000 | H182: Web Analyst | I182: Analyst | J182: India | K182: =VLOOKUP(Data!$J1419,tblCountries[[Actual]:[Mapping]],2,FALSE) -> USA | L182: 4 to 6 hours a day | M182: 2 | N182: India
B183: ID1794 | C183: 2012-06-11T21:03:36 | D183: 40000 | E183: 40000 | F183: USD | G183: =Data!$E1420*VLOOKUP(Data!$F1420,tblXrate[],2,FALSE) -> 36000 | H183: Intern | I183: Analyst | J183: USA | K183: =VLOOKUP(Data!$J1420,tblCountries[[Actual]:[Mapping]],2,FALSE) -> USA | L183: 2 to 3 hours per day | M183: 2 | N183: USA
B184: ID1821 | C184: 2012-06-13T00:23:31 | D184: 80000 | E184: 80000 | F184: USD | G184: =Data!$E1444*VLOOKUP(Data!$F1444,tblXrate[],2,FALSE) -> 14246.33335 | H184: Manager, Operations | I184: Manager | J184: USA | K184: =VLOOKUP(Data!$J1444,tblCountries[[Actual]:[Mapping]],2,FALSE) -> India | L184: 4 to 6 hours a day | M184: 2 | N184: USA
B185: ID1823 | C185: 2012-06-13T00:50:20 | D185: 20000 | E185: 20000 | F185: USD | G185: =Data!$E1446*VLOOKUP(Data!$F1446,tblXrate[],2,FALSE) -> 49168.07615 | H185: administrator | I185: Analyst | J185: Canada | K185: =VLOOKUP(Data!$J1446,tblCountries[[Actual]:[Mapping]],2,FALSE) -> Canada | L185: 2 to 3 hours per day | M185: 2 | N185: Canada
B186: ID1876 | C186: 2012-06-16T14:10:51 | D186: INR 360000 | E186: 360000 | F186: INR | G186: =Data!$E1488*VLOOKUP(Data!$F1488,tblXrate[],2,FALSE) -> 70000 | H186: Analyst | I186: Analyst | J186: India | K186: =VLOOKUP(Data!$J1488,tblCountries[[Actual]:[Mapping]],2,FALSE) -> USA | L186: All the 8 hours baby, all the 8! | M186: 2 | N186: India
B187: ID1883 | C187: 2012-06-17T01:34:46 | D187: 4,00,000 | E187: 400000 | F187: INR | G187: =Data!$E1495*VLOOKUP(Data!$F1495,tblXrate[],2,FALSE) -> 59001.69138 | H187: technical analyst | I187: Analyst | J187: India | K187: =VLOOKUP(Data!$J1495,tblCountries[[Actual]:[Mapping]],2,FALSE) -> Canada | L187: 1 or 2 hours a day | M187: 2 | N187: India
B188: ID1892 | C188: 2012-06-18T08:19:01 | D188: 5000 | E188: 5000 | F188: USD | G188: =Data!$E1500*VLOOKUP(Data!$F1500,tblXrate[],2,FALSE) -> 70000 | H188: analyst | I188: Analyst | J188: India | K188: =VLOOKUP(Data!$J1500,tblCountries[[Actual]:[Mapping]],2,FALSE) -> USA | L188: All the 8 hours baby, all the 8! | M188: 2 | N188: India
B189: ID1909 | C189: 2012-06-19T21:01:21 | D189: 420000 | E189: 420000 | F189: INR | G189: =Data!$E1515*VLOOKUP(Data!$F1515,tblXrate[],2,FALSE) -> 100000 | H189: Analyst | I189: Analyst | J189: India | K189: =VLOOKUP(Data!$J1515,tblCountries[[Actual]:[Mapping]],2,FALSE) -> USA | L189: 4 to 6 hours a day | M189: 2 | N189: India
B190: ID0695 | C190: 2012-05-26T13:29:12 | D190: 3000 $ | E190: 3000 | F190: USD | G190: =Data!$E1639*VLOOKUP(Data!$F1639,tblXrate[],2,FALSE) -> 68000 | H190: Call Centre Consultant | I190: Consultant | J190: Cambodia | K190: Other Countries | L190: 2 to 3 hours per day | M190: 2 | N190: Cambodia
B191: ID0714 | C191: 2012-05-26T14:20:23 | D191: 15000 USD | E191: 15000 | F191: USD | G191: =Data!$E1640*VLOOKUP(Data!$F1640,tblXrate[],2,FALSE) -> 75000 | H191: Audit - senior assistant | I191: Accountant | J191: Lithuania | K191: Other Countries | L191: 4 to 6 hours a day | M191: 2 | N191: Lithuania
B192: ID0727 | C192: 2012-05-26T15:02:34 | D192: 800 | E192: 9600 | F192: USD | G192: =Data!$E1643*VLOOKUP(Data!$F1643,tblXrate[],2,FALSE) -> 85000 | H192: Admin | I192: Analyst | J192: South Africa | K192: Other Countries | L192: 4 to 6 hours a day | M192: 2 | N192: South Africa
B193: ID0742 | C193: 2012-05-26T15:56:57 | D193: 4800 $ | E193: 4800 | F193: USD | G193: =Data!$E1646*VLOOKUP(Data!$F1646,tblXrate[],2,FALSE) -> 47500 | H193: Data Analysis | I193: Analyst | J193: Bhutan | K193: Other Countries | L193: 4 to 6 hours a day | M193: 2 | N193: Bhutan
B194: ID0765 | C194: 2012-05-26T17:09:24 | D194: 14960 $ | E194: 14960 | F194: USD | G194: =Data!$E1652*VLOOKUP(Data!$F1652,tblXrate[],2,FALSE) -> 160271.2502 | H194: Stock Controller | I194: Controller | J194: Saudi Arabia | K194: Other Countries | L194: All the 8 hours baby, all the 8! | M194: 2 | N194: Saudi Arabia
B195: ID0865 | C195: 2012-05-27T04:31:08 | D195: R134000 | E195: 134000 | F195: ZAR | G195: =Data!$E1671*VLOOKUP(Data!$F1671,tblXrate[],2,FALSE) -> 47000 | H195: Data Analyst | I195: Analyst | J195: South Africa | K195: Other Countries | L195: 4 to 6 hours a day | M195: 2 | N195: South Africa
B196: ID0950 | C196: 2012-05-28T00:48:23 | D196: 20000 | E196: 20000 | F196: USD | G196: =Data!$E1698*VLOOKUP(Data!$F1698,tblXrate[],2,FALSE) -> 75000 | H196: Financial Modeller | I196: Accountant | J196: Zambia | K196: Other Countries | L196: All the 8 hours baby, all the 8! | M196: 2 | N196: Zambia
B197: ID1001 | C197: 2012-05-28T10:15:27 | D197: RM48,000 | E197: 48000 | F197: MYR | G197: =Data!$E1710*VLOOKUP(Data!$F1710,tblXrate[],2,FALSE) -> 74000 | H197: Credit Risk Manager | I197: Manager | J197: Malaysia | K197: Other Countries | L197: 4 to 6 hours a day | M197: 2 | N197: malaysia
B198: ID1136 | C198: 2012-05-28T18:34:12 | D198: PhP 216,000 | E198: 216000 | F198: PHP | G198: =Data!$E1736*VLOOKUP(Data!$F1736,tblXrate[],2,FALSE) -> 52000 | H198: Planner | I198: Manager | J198: Philippines | K198: Other Countries | L198: 4 to 6 hours a day | M198: 2 | N198: Philippines
B199: ID1189 | C199: 2012-05-28T23:05:03 | D199: 216000 AED | E199: 216000 | F199: AED | G199: =Data!$E1751*VLOOKUP(Data!$F1751,tblXrate[],2,FALSE) -> 12821.70001 | H199: Financial analyst | I199: Analyst | J199: Dubai | K199: Other Countries | L199: 4 to 6 hours a day | M199: 2 | N199: Dubai
B200: ID1245 | C200: 2012-05-29T04:30:10 | D200: IDR 4000000 | E200: 48000000 | F200: IDR | G200: =Data!$E1764*VLOOKUP(Data!$F1764,tblXrate[],2,FALSE) -> 54000 | H200: Office Instructor | I200: Analyst | J200: Indonesia | K200: Other Countries | L200: 1 or 2 hours a day | M200: 2 | N200: Indonesia
B201: ID1260 | C201: 2012-05-29T07:57:04 | D201: 800000 | E201: 9600000 | F201: MONGOLIAN | G201: =Data!$E1768*VLOOKUP(Data!$F1768,tblXrate[],2,FALSE) -> 86093.30134 | H201: Analyst | I201: Analyst | J201: Mongolia | K201: Other Countries | L201: All the 8 hours baby, all the 8! | M201: 2 | N201: Mongolia
B202: ID1261 | C202: 2012-05-29T08:13:06 | D202: RM3000 | E202: 36000 | F202: MYR | G202: =Data!$E1769*VLOOKUP(Data!$F1769,tblXrate[],2,FALSE) -> 72600 | H202: Process Engineering | I202: Engineer | J202: Malaysia | K202: Other Countries | L202: 4 to 6 hours a day | M202: 2 | N202: malaysia
... 1687 more rows
